Workbook

Sheet Eingabe

Sheet Basis (hidden)
A1: Teuerungszuschlag | B1: 38.4 | C1: ab 01.01.2023
A2: Energiezuschlag | B2: 15.1 | C2: ab 01.01.2023
A3: U-Schale | B3: 11.74 | C3: ab 01.08.2022
A4: Teuerungszuschlag | B4: 9.23 | C4: ab 01.01.2023

Sheet Preisliste (hidden)
I1: ab 01.01.2023 | J1: ab 01.01.2023 | K1: ab 01.01.2023
A2: Artikelnummer | B2: Artikelbezeichnung | C2: Gefüllt | D2: NF | E2: Gewicht pro Palette | F2: Stück/Palette | G2: Preisliste 2022 | H2: Fracht 2022 | I2: Teuerungszuschlag pro TStück | J2: Energiekostenzuschlag pro TStück | K2: TZ/EKZ | L2: Ab Werk pro TStück | M2: Frei Bau pro TStück | N2: U-Schale | O2: Pos. PL
A3: 1640 | B3: evoton MZ 80 GH 36,5 | C3: ja | D3: 11.50208 | E3: 731 | F3: 48 | G3: 8680 | H3: 355 | I3: =IF(C3="ja",ROUND(1000*1/1000*D3*Basis!$B$1,2),0) -> 441.68 | J3: =IF(C3="ja",ROUND(1000/F3*E3/1000*Basis!$B$4,2),IF(N3="ja",ROUND(1000/F3*E3/1000*Basis!$B$3,2),ROUND(1000/F3*E3/1000*Basis!$B$2,2))) -> 140.57 | K3: =I3+J3 -> 582.25 | L3: =G3+K3 -> 9262.25 | M3: =G3+H3+K3 -> 9617.25 | N3: nein | O3: 1
A4: 1648 | B4: evoton MZ 80 GH 42,5 | C4: ja | D4: 13.39284 | E4: 650 | F4: 36 | G4: 10110 | H4: 405 | I4: =IF(C4="ja",ROUND(1000*1/1000*D4*Basis!$B$1,2),0) -> 514.29 | J4: =IF(C4="ja",ROUND(1000/F4*E4/1000*Basis!$B$4,2),IF(N4="ja",ROUND(1000/F4*E4/1000*Basis!$B$3,2),ROUND(1000/F4*E4/1000*Basis!$B$2,2))) -> 166.65 | K4: =I4+J4 -> 680.94 | L4: =G4+K4 -> 10790.94 | M4: =G4+H4+K4 -> 11195.94 | N4: nein | O4: 2
A5: 1645 | B5: evoton Anfänger 36,5 | C5: ja | D5: 5.70466 | E5: 768 | F5: 84 | G5: 5470 | H5: 200 | I5: =IF(C5="ja",ROUND(1000*1/1000*D5*Basis!$B$1,2),0) -> 219.06 | J5: =IF(C5="ja",ROUND(1000/F5*E5/1000*Basis!$B$4,2),IF(N5="ja",ROUND(1000/F5*E5/1000*Basis!$B$3,2),ROUND(1000/F5*E5/1000*Basis!$B$2,2))) -> 84.39 | K5: 303.45 | L5: 5773.45 | M5: 5973.45 | N5: nein | O5: 3
A6: 1644 | B6: evoton Anfänger 42,5 | C6: ja | D6: 7.29046 | E6: 690 | F6: 60 | G6: 6560 | H6: 260 | I6: =IF(C6="ja",ROUND(1000*1/1000*D6*Basis!$B$1,2),0) -> 279.95 | J6: =IF(C6="ja",ROUND(1000/F6*E6/1000*Basis!$B$4,2),IF(N6="ja",ROUND(1000/F6*E6/1000*Basis!$B$3,2),ROUND(1000/F6*E6/1000*Basis!$B$2,2))) -> 106.15 | K6: 386.1 | L6: 6946.1 | M6: 7206.1 | N6: nein | O6: 4
A7: 1710 | B7: evoton MZ 65 36,5 | C7: ja | D7: 11.50208 | E7: 659 | F7: 48 | G7: 9990 | H7: 340 | I7: =IF(C7="ja",ROUND(1000*1/1000*D7*Basis!$B$1,2),0) -> 441.68 | J7: =IF(C7="ja",ROUND(1000/F7*E7/1000*Basis!$B$4,2),IF(N7="ja",ROUND(1000/F7*E7/1000*Basis!$B$3,2),ROUND(1000/F7*E7/1000*Basis!$B$2,2))) -> 126.72 | K7: 568.4 | L7: 10558.4 | M7: 10898.4 | N7: nein | O7: 5
A8: 1718 | B8: evoton MZ 65 42,5 | C8: ja | D8: 13.39284 | E8: 576 | F8: 36 | G8: 11930 | H8: 385 | I8: =IF(C8="ja",ROUND(1000*1/1000*D8*Basis!$B$1,2),0) -> 514.29 | J8: =IF(C8="ja",ROUND(1000/F8*E8/1000*Basis!$B$4,2),IF(N8="ja",ROUND(1000/F8*E8/1000*Basis!$B$3,2),ROUND(1000/F8*E8/1000*Basis!$B$2,2))) -> 147.68 | K8: =I8+J8 -> 661.97 | L8: =G8+K8 -> 12591.97 | M8: =G8+H8+K8 -> 12976.97 | N8: nein | O8: 6
A9: 1715 | B9: evoton Anfänger 36,5 | C9: ja | D9: 5.70466 | E9: 785 | F9: 84 | G9: 5270 | H9: 200 | I9: =IF(C9="ja",ROUND(1000*1/1000*D9*Basis!$B$1,2),0) -> 219.06 | J9: =IF(C9="ja",ROUND(1000/F9*E9/1000*Basis!$B$4,2),IF(N9="ja",ROUND(1000/F9*E9/1000*Basis!$B$3,2),ROUND(1000/F9*E9/1000*Basis!$B$2,2))) -> 86.26 | K9: 305.32 | L9: 5575.32 | M9: 5775.32 | N9: nein | O9: 7
A10: 1714 | B10: evoton Anfänger 42,5 | C10: ja | D10: 7.29045 | E10: 624 | F10: 60 | G10: 6320 | H10: 260 | I10: =IF(C10="ja",ROUND(1000*1/1000*D10*Basis!$B$1,2),0) -> 279.95 | J10: =IF(C10="ja",ROUND(1000/F10*E10/1000*Basis!$B$4,2),IF(N10="ja",ROUND(1000/F10*E10/1000*Basis!$B$3,2),ROUND(1000/F10*E10/1000*Basis!$B$2,2))) -> 95.99 | K10: 375.94 | L10: 6695.94 | M10: 6955.94 | N10: nein | O10: 8
A11: 1730 | B11: evoton MZ 75 G 36,5 | C11: ja | D11: 11.50208 | E11: 731 | F11: 48 | G11: 9620 | H11: 355 | I11: =IF(C11="ja",ROUND(1000*1/1000*D11*Basis!$B$1,2),0) -> 441.68 | J11: =IF(C11="ja",ROUND(1000/F11*E11/1000*Basis!$B$4,2),IF(N11="ja",ROUND(1000/F11*E11/1000*Basis!$B$3,2),ROUND(1000/F11*E11/1000*Basis!$B$2,2))) -> 140.57 | K11: 582.25 | L11: 10202.25 | M11: 10557.25 | N11: nein | O11: 9
A12: 1738 | B12: evoton MZ 75 G 42,5 | C12: ja | D12: 13.39284 | E12: 650 | F12: 36 | G12: 11210 | H12: 405 | I12: =IF(C12="ja",ROUND(1000*1/1000*D12*Basis!$B$1,2),0) -> 514.29 | J12: =IF(C12="ja",ROUND(1000/F12*E12/1000*Basis!$B$4,2),IF(N12="ja",ROUND(1000/F12*E12/1000*Basis!$B$3,2),ROUND(1000/F12*E12/1000*Basis!$B$2,2))) -> 166.65 | K12: 680.94 | L12: 11890.94 | M12: 12295.94 | N12: nein | O12: 10
A13: 1739 | B13: evoton MZ 75 G 49,0 | C13: ja | D13: 15.44115 | E13: 772 | F13: 36 | G13: 12470 | H13: 465 | I13: =IF(C13="ja",ROUND(1000*1/1000*D13*Basis!$B$1,2),0) -> 592.94 | J13: =IF(C13="ja",ROUND(1000/F13*E13/1000*Basis!$B$4,2),IF(N13="ja",ROUND(1000/F13*E13/1000*Basis!$B$3,2),ROUND(1000/F13*E13/1000*Basis!$B$2,2))) -> 197.93 | K13: 790.87 | L13: 13260.87 | M13: 13725.87 | N13: nein | O13: 11
A14: 1741 | B14: evoton MZ Anfänger 30,0 | C14: ja | D14: 4.68876 | E14: 530 | F14: 72 | G14: 4970 | H14: 240 | I14: =IF(C14="ja",ROUND(1000*1/1000*D14*Basis!$B$1,2),0) -> 180.05 | J14: =IF(C14="ja",ROUND(1000/F14*E14/1000*Basis!$B$4,2),IF(N14="ja",ROUND(1000/F14*E14/1000*Basis!$B$3,2),ROUND(1000/F14*E14/1000*Basis!$B$2,2))) -> 67.94 | K14: 247.99 | L14: 5217.99 | M14: 5457.99 | N14: nein | O14: 12
A15: 1747 | B15: evoton MZ Eckziegel 30,0 | C15: ja | D15: 6.671 | E15: 804 | F15: 72 | G15: 7050 | H15: 245 | I15: =IF(C15="ja",ROUND(1000*1/1000*D15*Basis!$B$1,2),0) -> 256.17 | J15: =IF(C15="ja",ROUND(1000/F15*E15/1000*Basis!$B$4,2),IF(N15="ja",ROUND(1000/F15*E15/1000*Basis!$B$3,2),ROUND(1000/F15*E15/1000*Basis!$B$2,2))) -> 103.07 | K15: 359.24 | L15: 7409.24 | M15: 7654.24 | N15: nein | O15: 13
A16: 1745 | B16: evoton MZ Anfänger 36,5 | C16: ja | D16: 5.70466 | E16: 768 | F16: 84 | G16: 5270 | H16: 200 | I16: =IF(C16="ja",ROUND(1000*1/1000*D16*Basis!$B$1,2),0) -> 219.06 | J16: =IF(C16="ja",ROUND(1000/F16*E16/1000*Basis!$B$4,2),IF(N16="ja",ROUND(1000/F16*E16/1000*Basis!$B$3,2),ROUND(1000/F16*E16/1000*Basis!$B$2,2))) -> 84.39 | K16: 303.45 | L16: 5573.45 | M16: 5773.45 | N16: nein | O16: 14
A17: 1744 | B17: evoton MZ Anfänger 42,5 | C17: ja | D17: 7.29045 | E17: 690 | F17: 60 | G17: 6320 | H17: 260 | I17: =IF(C17="ja",ROUND(1000*1/1000*D17*Basis!$B$1,2),0) -> 279.95 | J17: =IF(C17="ja",ROUND(1000/F17*E17/1000*Basis!$B$4,2),IF(N17="ja",ROUND(1000/F17*E17/1000*Basis!$B$3,2),ROUND(1000/F17*E17/1000*Basis!$B$2,2))) -> 106.15 | K17: 386.1 | L17: 6706.1 | M17: 6966.1 | N17: nein | O17: 15
A18: 1742 | B18: evoton MZ 80 GS 30,0 | C18: ja | D18: 9.45377 | E18: 713 | F18: 54 | G18: 7480 | H18: 325 | I18: =IF(C18="ja",ROUND(1000*1/1000*D18*Basis!$B$1,2),0) -> 363.02 | J18: =IF(C18="ja",ROUND(1000/F18*E18/1000*Basis!$B$4,2),IF(N18="ja",ROUND(1000/F18*E18/1000*Basis!$B$3,2),ROUND(1000/F18*E18/1000*Basis!$B$2,2))) -> 121.87 | K18: 484.89 | L18: 7964.89 | M18: 8289.89 | N18: nein | O18: 16
A19: 1740 | B19: evoton MZ 80 GS 36,5 | C19: ja | D19: 11.50208 | E19: 731 | F19: 48 | G19: 8370 | H19: 355 | I19: =IF(C19="ja",ROUND(1000*1/1000*D19*Basis!$B$1,2),0) -> 441.68 | J19: =IF(C19="ja",ROUND(1000/F19*E19/1000*Basis!$B$4,2),IF(N19="ja",ROUND(1000/F19*E19/1000*Basis!$B$3,2),ROUND(1000/F19*E19/1000*Basis!$B$2,2))) -> 140.57 | K19: 582.25 | L19: 8952.25 | M19: 9307.25 | N19: nein | O19: 17
A20: 1748 | B20: evoton MZ 80 GS 42,5 | C20: ja | D20: 13.39284 | E20: 650 | F20: 36 | G20: 9750 | H20: 405 | I20: =IF(C20="ja",ROUND(1000*1/1000*D20*Basis!$B$1,2),0) -> 514.29 | J20: =IF(C20="ja",ROUND(1000/F20*E20/1000*Basis!$B$4,2),IF(N20="ja",ROUND(1000/F20*E20/1000*Basis!$B$3,2),ROUND(1000/F20*E20/1000*Basis!$B$2,2))) -> 166.65 | K20: 680.94 | L20: 10430.94 | M20: 10835.94 | N20: nein | O20: 18
A21: 1749 | B21: evoton MZ 80 GS 49,0 | C21: ja | D21: 15.44115 | E21: 772 | F21: 36 | G21: 10850 | H21: 465 | I21: =IF(C21="ja",ROUND(1000*1/1000*D21*Basis!$B$1,2),0) -> 592.94 | J21: =IF(C21="ja",ROUND(1000/F21*E21/1000*Basis!$B$4,2),IF(N21="ja",ROUND(1000/F21*E21/1000*Basis!$B$3,2),ROUND(1000/F21*E21/1000*Basis!$B$2,2))) -> 197.93 | K21: 790.87 | L21: 11640.87 | M21: 12105.87 | N21: nein | O21: 19
A22: 1770 | B22: evoton MZ 90 GMS 36,5 | C22: ja | D22: 11.50208 | E22: 765 | F22: 48 | G22: 8370 | H22: 355 | I22: =IF(C22="ja",ROUND(1000*1/1000*D22*Basis!$B$1,2),0) -> 441.68 | J22: =IF(C22="ja",ROUND(1000/F22*E22/1000*Basis!$B$4,2),IF(N22="ja",ROUND(1000/F22*E22/1000*Basis!$B$3,2),ROUND(1000/F22*E22/1000*Basis!$B$2,2))) -> 147.1 | K22: 588.78 | L22: 8958.78 | M22: 9313.78 | N22: nein | O22: 20
A23: 1778 | B23: evoton MZ 90 GMS 42,5 | C23: ja | D23: 13.39284 | E23: 650 | F23: 36 | G23: 9750 | H23: 405 | I23: =IF(C23="ja",ROUND(1000*1/1000*D23*Basis!$B$1,2),0) -> 514.29 | J23: =IF(C23="ja",ROUND(1000/F23*E23/1000*Basis!$B$4,2),IF(N23="ja",ROUND(1000/F23*E23/1000*Basis!$B$3,2),ROUND(1000/F23*E23/1000*Basis!$B$2,2))) -> 166.65 | K23: 680.94 | L23: 10430.94 | M23: 10835.94 | N23: nein | O23: 21
A24: 1752 | B24: evoton MZ 90 G 30,0 | C24: ja | D24: 9.45377 | E24: 713 | F24: 54 | G24: 7480 | H24: 325 | I24: =IF(C24="ja",ROUND(1000*1/1000*D24*Basis!$B$1,2),0) -> 363.02 | J24: =IF(C24="ja",ROUND(1000/F24*E24/1000*Basis!$B$4,2),IF(N24="ja",ROUND(1000/F24*E24/1000*Basis!$B$3,2),ROUND(1000/F24*E24/1000*Basis!$B$2,2))) -> 121.87 | K24: 484.89 | L24: 7964.89 | M24: 8289.89 | N24: nein | O24: 22
A25: 1759 | B25: evoton MZ 90 G 49,0 | C25: ja | D25: 15.44115 | E25: 772 | F25: 36 | G25: 10850 | H25: 465 | I25: =IF(C25="ja",ROUND(1000*1/1000*D25*Basis!$B$1,2),0) -> 592.94 | J25: =IF(C25="ja",ROUND(1000/F25*E25/1000*Basis!$B$4,2),IF(N25="ja",ROUND(1000/F25*E25/1000*Basis!$B$3,2),ROUND(1000/F25*E25/1000*Basis!$B$2,2))) -> 197.93 | K25: 790.87 | L25: 11640.87 | M25: 12105.87 | N25: nein | O25: 23
A26: 1720 | B26: evoton MZ 70 36,5 | C26: ja | D26: 11.50208 | E26: 661 | F26: 48 | G26: 7630 | H26: 340 | I26: =IF(C26="ja",ROUND(1000*1/1000*D26*Basis!$B$1,2),0) -> 441.68 | J26: =IF(C26="ja",ROUND(1000/F26*E26/1000*Basis!$B$4,2),IF(N26="ja",ROUND(1000/F26*E26/1000*Basis!$B$3,2),ROUND(1000/F26*E26/1000*Basis!$B$2,2))) -> 127.1 | K26: 568.78 | L26: 8198.78 | M26: 8538.78 | N26: nein | O26: 24
A27: 1728 | B27: evoton MZ 70 42,5 | C27: ja | D27: 13.39284 | E27: 579 | F27: 36 | G27: 9150 | H27: 385 | I27: =IF(C27="ja",ROUND(1000*1/1000*D27*Basis!$B$1,2),0) -> 514.29 | J27: =IF(C27="ja",ROUND(1000/F27*E27/1000*Basis!$B$4,2),IF(N27="ja",ROUND(1000/F27*E27/1000*Basis!$B$3,2),ROUND(1000/F27*E27/1000*Basis!$B$2,2))) -> 148.45 | K27: 662.74 | L27: 9812.74 | M27: 10197.74 | N27: nein | O27: 25
A28: 1729 | B28: evoton MZ 70 49,0 | C28: ja | D28: 15.44115 | E28: 772 | F28: 36 | G28: 10490 | H28: 465 | I28: =IF(C28="ja",ROUND(1000*1/1000*D28*Basis!$B$1,2),0) -> 592.94 | J28: =IF(C28="ja",ROUND(1000/F28*E28/1000*Basis!$B$4,2),IF(N28="ja",ROUND(1000/F28*E28/1000*Basis!$B$3,2),ROUND(1000/F28*E28/1000*Basis!$B$2,2))) -> 197.93 | K28: 790.87 | L28: 11280.87 | M28: 11745.87 | N28: nein | O28: 26
A29: 1970 | B29: ecoton-Plan 4-0,60-12,0 DF | C29: nein | D29: 11.4557 | E29: =ROUND((VLOOKUP(A29,Gewichte!A:E,5,FALSE)*F29),0)+16 -> 641 | F29: 48 | G29: 9630 | H29: 340 | I29: =IF(C29="ja",ROUND(1000*1/1000*D29*Basis!$B$1,2),0) -> 0 | J29: =IF(C29="ja",ROUND(1000/F29*E29/1000*Basis!$B$4,2),IF(N29="ja",ROUND(1000/F29*E29/1000*Basis!$B$3,2),ROUND(1000/F29*E29/1000*Basis!$B$2,2))) -> 201.65 | K29: 201.65 | L29: 9831.65 | M29: 10171.65 | N29: nein | O29: 27
A30: 1978 | B30: ecoton-Plan 4-0,60-14,0 DF | C30: nein | D30: 13.33883 | E30: =ROUND((VLOOKUP(A30,Gewichte!A:E,5,FALSE)*F30),0)+16 -> 562 | F30: 36 | G30: 11130 | H30: 385 | I30: =IF(C30="ja",ROUND(1000*1/1000*D30*Basis!$B$1,2),0) -> 0 | J30: =IF(C30="ja",ROUND(1000/F30*E30/1000*Basis!$B$4,2),IF(N30="ja",ROUND(1000/F30*E30/1000*Basis!$B$3,2),ROUND(1000/F30*E30/1000*Basis!$B$2,2))) -> 235.73 | K30: 235.73 | L30: 11365.73 | M30: 11750.73 | N30: nein | O30: 28
A31: 1979 | B31: ecoton-Plan 4-0,60-16,0 DF | C31: nein | D31: 15.37889 | E31: 654 | F31: 36 | G31: 13360 | H31: 465 | I31: =IF(C31="ja",ROUND(1000*1/1000*D31*Basis!$B$1,2),0) -> 0 | J31: =IF(C31="ja",ROUND(1000/F31*E31/1000*Basis!$B$4,2),IF(N31="ja",ROUND(1000/F31*E31/1000*Basis!$B$3,2),ROUND(1000/F31*E31/1000*Basis!$B$2,2))) -> 274.32 | K31: 274.32 | L31: 13634.32 | M31: 14099.32 | N31: nein | O31: 29
A32: 1985 | B32: ecoton-Plan Anfänger 36,5 | C32: nein | D32: 5.70466 | E32: 652 | F32: 80 | G32: 5100 | H32: 195 | I32: =IF(C32="ja",ROUND(1000*1/1000*D32*Basis!$B$1,2),0) -> 0 | J32: =IF(C32="ja",ROUND(1000/F32*E32/1000*Basis!$B$4,2),IF(N32="ja",ROUND(1000/F32*E32/1000*Basis!$B$3,2),ROUND(1000/F32*E32/1000*Basis!$B$2,2))) -> 123.07 | K32: 123.07 | L32: 5223.07 | M32: 5418.07 | N32: nein | O32: 30
A33: 1984 | B33: ecoton-Plan Anfänger 42,5 | C33: nein | D33: 7.29045 | E33: 756 | F33: 60 | G33: 6860 | H33: 220 | I33: =IF(C33="ja",ROUND(1000*1/1000*D33*Basis!$B$1,2),0) -> 0 | J33: =IF(C33="ja",ROUND(1000/F33*E33/1000*Basis!$B$4,2),IF(N33="ja",ROUND(1000/F33*E33/1000*Basis!$B$3,2),ROUND(1000/F33*E33/1000*Basis!$B$2,2))) -> 190.26 | K33: 190.26 | L33: 7050.26 | M33: 7270.26 | N33: nein | O33: 31
A34: 1980 | B34: ecoton-Plan 6-0,60-12,0 DF | C34: nein | D34: 11.4557 | E34: =ROUND((VLOOKUP(A34,Gewichte!A:E,5,FALSE)*F34),0)+16 -> 654 | F34: 48 | G34: 8120 | H34: 340 | I34: =IF(C34="ja",ROUND(1000*1/1000*D34*Basis!$B$1,2),0) -> 0 | J34: =IF(C34="ja",ROUND(1000/F34*E34/1000*Basis!$B$4,2),IF(N34="ja",ROUND(1000/F34*E34/1000*Basis!$B$3,2),ROUND(1000/F34*E34/1000*Basis!$B$2,2))) -> 205.74 | K34: 205.74 | L34: 8325.74 | M34: 8665.74 | N34: nein | O34: 32
A35: 1988 | B35: ecoton-Plan 6-0,60-14,0 DF | C35: nein | D35: 13.33883 | E35: =ROUND((VLOOKUP(A35,Gewichte!A:E,5,FALSE)*F35),0)+16 -> 581 | F35: 36 | G35: 9400 | H35: 385 | I35: =IF(C35="ja",ROUND(1000*1/1000*D35*Basis!$B$1,2),0) -> 0 | J35: =IF(C35="ja",ROUND(1000/F35*E35/1000*Basis!$B$4,2),IF(N35="ja",ROUND(1000/F35*E35/1000*Basis!$B$3,2),ROUND(1000/F35*E35/1000*Basis!$B$2,2))) -> 243.7 | K35: 243.7 | L35: 9643.7 | M35: 10028.7 | N35: nein | O35: 33
A36: 1989 | B36: ecoton-Plan 6-0,60-16,0 DF | C36: nein | D36: 15.37889 | E36: =ROUND((VLOOKUP(A36,Gewichte!A:E,5,FALSE)*F36),0)+16 -> 667 | F36: 36 | G36: 11270 | H36: 465 | I36: =IF(C36="ja",ROUND(1000*1/1000*D36*Basis!$B$1,2),0) -> 0 | J36: =IF(C36="ja",ROUND(1000/F36*E36/1000*Basis!$B$4,2),IF(N36="ja",ROUND(1000/F36*E36/1000*Basis!$B$3,2),ROUND(1000/F36*E36/1000*Basis!$B$2,2))) -> 279.77 | K36: 279.77 | L36: 11549.77 | M36: 12014.77 | N36: nein | O36: 34
A37: 1981 | B37: ecoton-Plan Eckziegel 36,5 | C37: nein | D37: 11.4557 | E37: 674 | F37: 48 | G37: 10870 | H37: 340 | I37: =IF(C37="ja",ROUND(1000*1/1000*D37*Basis!$B$1,2),0) -> 0 | J37: =IF(C37="ja",ROUND(1000/F37*E37/1000*Basis!$B$4,2),IF(N37="ja",ROUND(1000/F37*E37/1000*Basis!$B$3,2),ROUND(1000/F37*E37/1000*Basis!$B$2,2))) -> 212.03 | K37: 212.03 | L37: 11082.03 | M37: 11422.03 | N37: nein | O37: 35
A38: 1940 | B38: ecoton-Plan 8-0,65-12,0 DF | C38: nein | D38: 11.4557 | E38: 722 | F38: 48 | G38: 7550 | H38: 340 | I38: =IF(C38="ja",ROUND(1000*1/1000*D38*Basis!$B$1,2),0) -> 0 | J38: =IF(C38="ja",ROUND(1000/F38*E38/1000*Basis!$B$4,2),IF(N38="ja",ROUND(1000/F38*E38/1000*Basis!$B$3,2),ROUND(1000/F38*E38/1000*Basis!$B$2,2))) -> 227.13 | K38: 227.13 | L38: 7777.13 | M38: 8117.13 | N38: nein | O38: 36
A39: 1948 | B39: ecoton-Plan 8-0,65-14,0 DF | C39: nein | D39: 13.33883 | E39: 623 | F39: 36 | G39: 9150 | H39: 385 | I39: =IF(C39="ja",ROUND(1000*1/1000*D39*Basis!$B$1,2),0) -> 0 | J39: =IF(C39="ja",ROUND(1000/F39*E39/1000*Basis!$B$4,2),IF(N39="ja",ROUND(1000/F39*E39/1000*Basis!$B$3,2),ROUND(1000/F39*E39/1000*Basis!$B$2,2))) -> 261.31 | K39: 261.31 | L39: 9411.31 | M39: 9796.31 | N39: nein | O39: 37
A40: 1932 | B40: ecoton-Plan 6-0,65-10,0 DF | C40: nein | D40: 9.41565 | E40: 669 | F40: 54 | G40: 6320 | H40: 280 | I40: =IF(C40="ja",ROUND(1000*1/1000*D40*Basis!$B$1,2),0) -> 0 | J40: =IF(C40="ja",ROUND(1000/F40*E40/1000*Basis!$B$4,2),IF(N40="ja",ROUND(1000/F40*E40/1000*Basis!$B$3,2),ROUND(1000/F40*E40/1000*Basis!$B$2,2))) -> 187.07 | K40: 187.07 | L40: 6507.07 | M40: 6787.07 | N40: nein | O40: 38
A41: 1930 | B41: ecoton-Plan 6-0,65-12,0 DF | C41: nein | D41: 11.4557 | E41: =ROUND((VLOOKUP(A41,Gewichte!A:E,5,FALSE)*F41),0)+16 -> 722 | F41: 48 | G41: 6990 | H41: 340 | I41: =IF(C41="ja",ROUND(1000*1/1000*D41*Basis!$B$1,2),0) -> 0 | J41: =IF(C41="ja",ROUND(1000/F41*E41/1000*Basis!$B$4,2),IF(N41="ja",ROUND(1000/F41*E41/1000*Basis!$B$3,2),ROUND(1000/F41*E41/1000*Basis!$B$2,2))) -> 227.13 | K41: 227.13 | L41: 7217.13 | M41: 7557.13 | N41: nein | O41: 39
A42: 1938 | B42: ecoton-Plan 6-0,65-14,0 DF | C42: nein | D42: 13.33883 | E42: =ROUND((VLOOKUP(A42,Gewichte!A:E,5,FALSE)*F42),0)+16 -> 623 | F42: 36 | G42: 8470 | H42: 385 | I42: =IF(C42="ja",ROUND(1000*1/1000*D42*Basis!$B$1,2),0) -> 0 | J42: =IF(C42="ja",ROUND(1000/F42*E42/1000*Basis!$B$4,2),IF(N42="ja",ROUND(1000/F42*E42/1000*Basis!$B$3,2),ROUND(1000/F42*E42/1000*Basis!$B$2,2))) -> 261.31 | K42: 261.31 | L42: 8731.31 | M42: 9116.31 | N42: nein | O42: 40
A43: 1939 | B43: ecoton-Plan 6-0,65-16,0 DF | C43: nein | D43: 15.37889 | E43: =ROUND((VLOOKUP(A43,Gewichte!A:E,5,FALSE)*F43),0)+16 -> 689 | F43: 36 | G43: 10160 | H43: 465 | I43: =IF(C43="ja",ROUND(1000*1/1000*D43*Basis!$B$1,2),0) -> 0 | J43: =IF(C43="ja",ROUND(1000/F43*E43/1000*Basis!$B$4,2),IF(N43="ja",ROUND(1000/F43*E43/1000*Basis!$B$3,2),ROUND(1000/F43*E43/1000*Basis!$B$2,2))) -> 289 | K43: 289 | L43: 10449 | M43: 10914 | N43: nein | O43: 41
A44: 1837 | B44: ecoton-Plan Eck/Anfänger 30,0 | C44: nein | D44: 6.671 | E44: 596 | F44: 72 | G44: 6010 | H44: 220 | I44: =IF(C44="ja",ROUND(1000*1/1000*D44*Basis!$B$1,2),0) -> 0 | J44: =IF(C44="ja",ROUND(1000/F44*E44/1000*Basis!$B$4,2),IF(N44="ja",ROUND(1000/F44*E44/1000*Basis!$B$3,2),ROUND(1000/F44*E44/1000*Basis!$B$2,2))) -> 124.99 | K44: 124.99 | L44: 6134.99 | M44: 6354.99 | N44: nein | O44: 42
A45: 1840 | B45: ecoton-Plan 6-0,65-12,0 DF | C45: nein | D45: 11.50208 | E45: 702 | F45: 48 | G45: 7920 | H45: 340 | I45: =IF(C45="ja",ROUND(1000*1/1000*D45*Basis!$B$1,2),0) -> 0 | J45: =IF(C45="ja",ROUND(1000/F45*E45/1000*Basis!$B$4,2),IF(N45="ja",ROUND(1000/F45*E45/1000*Basis!$B$3,2),ROUND(1000/F45*E45/1000*Basis!$B$2,2))) -> 220.84 | K45: 220.84 | L45: 8140.84 | M45: 8480.84 | N45: nein | O45: 43
A46: 1848 | B46: ecoton-Plan 6-0,65-14,0 DF | C46: nein | D46: 13.39284 | E46: 635 | F46: 36 | G46: 9050 | H46: 385 | I46: =IF(C46="ja",ROUND(1000*1/1000*D46*Basis!$B$1,2),0) -> 0 | J46: =IF(C46="ja",ROUND(1000/F46*E46/1000*Basis!$B$4,2),IF(N46="ja",ROUND(1000/F46*E46/1000*Basis!$B$3,2),ROUND(1000/F46*E46/1000*Basis!$B$2,2))) -> 266.35 | K46: 266.35 | L46: 9316.35 | M46: 9701.35 | N46: nein | O46: 44
A47: 1849 | B47: ecoton-Plan 6-0,65-16,0 DF | C47: nein | D47: 15.44115 | E47: 722 | F47: 36 | G47: 11360 | H47: 465 | I47: =IF(C47="ja",ROUND(1000*1/1000*D47*Basis!$B$1,2),0) -> 0 | J47: =IF(C47="ja",ROUND(1000/F47*E47/1000*Basis!$B$4,2),IF(N47="ja",ROUND(1000/F47*E47/1000*Basis!$B$3,2),ROUND(1000/F47*E47/1000*Basis!$B$2,2))) -> 302.84 | K47: 302.84 | L47: 11662.84 | M47: 12127.84 | N47: nein | O47: 45
A48: 1843 | B48: Keller-Plan 36,5 - 0,11 | C48: nein | D48: 11.50208 | E48: 702 | F48: 48 | G48: 7970 | H48: 340 | I48: =IF(C48="ja",ROUND(1000*1/1000*D48*Basis!$B$1,2),0) -> 0 | J48: =IF(C48="ja",ROUND(1000/F48*E48/1000*Basis!$B$4,2),IF(N48="ja",ROUND(1000/F48*E48/1000*Basis!$B$3,2),ROUND(1000/F48*E48/1000*Basis!$B$2,2))) -> 220.84 | K48: 220.84 | L48: 8190.84 | M48: 8530.84 | N48: nein | O48: 46
A49: 1874 | B49: ecoton-Plan 6-0,65-10,0 DF | C49: nein | D49: 9.39277 | E49: 655 | F49: 54 | G49: 6300 | H49: 280 | I49: =IF(C49="ja",ROUND(1000*1/1000*D49*Basis!$B$1,2),0) -> 0 | J49: =IF(C49="ja",ROUND(1000/F49*E49/1000*Basis!$B$4,2),IF(N49="ja",ROUND(1000/F49*E49/1000*Basis!$B$3,2),ROUND(1000/F49*E49/1000*Basis!$B$2,2))) -> 183.16 | K49: 183.16 | L49: 6483.16 | M49: 6763.16 | N49: nein | O49: 47
A50: 802 | B50: TH-Plan 6 - 0,8 - 10,0 DF | C50: nein | D50: 9.41565 | E50: 762 | F50: 54 | G50: 5400 | H50: 280 | I50: =IF(C50="ja",ROUND(1000*1/1000*D50*Basis!$B$1,2),0) -> 0 | J50: =IF(C50="ja",ROUND(1000/F50*E50/1000*Basis!$B$4,2),IF(N50="ja",ROUND(1000/F50*E50/1000*Basis!$B$3,2),ROUND(1000/F50*E50/1000*Basis!$B$2,2))) -> 213.08 | K50: 213.08 | L50: 5613.08 | M50: 5893.08 | N50: nein | O50: 48
A51: 840 | B51: TH-Plan 6 - 0,8 - 12,0 DF | C51: nein | D51: 11.4557 | E51: 823 | F51: 48 | G51: 6650 | H51: 340 | I51: =IF(C51="ja",ROUND(1000*1/1000*D51*Basis!$B$1,2),0) -> 0 | J51: =IF(C51="ja",ROUND(1000/F51*E51/1000*Basis!$B$4,2),IF(N51="ja",ROUND(1000/F51*E51/1000*Basis!$B$3,2),ROUND(1000/F51*E51/1000*Basis!$B$2,2))) -> 258.9 | K51: 258.9 | L51: 6908.9 | M51: 7248.9 | N51: nein | O51: 49
A52: 823 | B52: TH-Plan 10-0,75-12,0 DF | C52: nein | D52: 11.37502 | E52: 810 | F52: 48 | G52: 6650 | H52: 340 | I52: =IF(C52="ja",ROUND(1000*1/1000*D52*Basis!$B$1,2),0) -> 0 | J52: =IF(C52="ja",ROUND(1000/F52*E52/1000*Basis!$B$4,2),IF(N52="ja",ROUND(1000/F52*E52/1000*Basis!$B$3,2),ROUND(1000/F52*E52/1000*Basis!$B$2,2))) -> 254.81 | K52: 254.81 | L52: 6904.81 | M52: 7244.81 | N52: nein | O52: 50
A53: 803 | B53: TH-Plan 10-0,75-10,0 DF | C53: nein | D53: 9.45377 | E53: 762 | F53: 54 | G53: 5570 | H53: 280 | I53: =IF(C53="ja",ROUND(1000*1/1000*D53*Basis!$B$1,2),0) -> 0 | J53: =IF(C53="ja",ROUND(1000/F53*E53/1000*Basis!$B$4,2),IF(N53="ja",ROUND(1000/F53*E53/1000*Basis!$B$3,2),ROUND(1000/F53*E53/1000*Basis!$B$2,2))) -> 213.08 | K53: 213.08 | L53: 5783.08 | M53: 6063.08 | N53: nein | O53: 51
A54: 843 | B54: TH-Plan 10-0,75-12,0 DF | C54: nein | D54: 11.50208 | E54: 823 | F54: 48 | G54: 6850 | H54: 340 | I54: =IF(C54="ja",ROUND(1000*1/1000*D54*Basis!$B$1,2),0) -> 0 | J54: =IF(C54="ja",ROUND(1000/F54*E54/1000*Basis!$B$4,2),IF(N54="ja",ROUND(1000/F54*E54/1000*Basis!$B$3,2),ROUND(1000/F54*E54/1000*Basis!$B$2,2))) -> 258.9 | K54: 258.9 | L54: 7108.9 | M54: 7448.9 | N54: nein | O54: 52
A55: 8510 | B55: TH-Plan 8-0,8-8,0 DF | C55: nein | D55: 7.2625 | E55: 722 | F55: 72 | G55: 4255 | H55: 235 | I55: =IF(C55="ja",ROUND(1000*1/1000*D55*Basis!$B$1,2),0) -> 0 | J55: =IF(C55="ja",ROUND(1000/F55*E55/1000*Basis!$B$4,2),IF(N55="ja",ROUND(1000/F55*E55/1000*Basis!$B$3,2),ROUND(1000/F55*E55/1000*Basis!$B$2,2))) -> 151.42 | K55: 151.42 | L55: 4406.42 | M55: 4641.42 | N55: nein | O55: 53
A56: 805 | B56: TH-Plan 8-0,8-6,0 DF | C56: nein | D56: 5.43592 | E56: =ROUND((VLOOKUP(A56,Gewichte!A:E,5,FALSE)*F56),0)+16 -> 813 | F56: 96 | G56: 3095 | H56: 165 | I56: =IF(C56="ja",ROUND(1000*1/1000*D56*Basis!$B$1,2),0) -> 0 | J56: =IF(C56="ja",ROUND(1000/F56*E56/1000*Basis!$B$4,2),IF(N56="ja",ROUND(1000/F56*E56/1000*Basis!$B$3,2),ROUND(1000/F56*E56/1000*Basis!$B$2,2))) -> 127.88 | K56: 127.88 | L56: 3222.88 | M56: 3387.88 | N56: nein | O56: 54
A57: 812 | B57: TH-Plan 8-0,8-10,0 DF | C57: nein | D57: 9.15707 | E57: =ROUND((VLOOKUP(A57,Gewichte!A:E,5,FALSE)*F57),0)+16 -> 790 | F57: 60 | G57: 5085 | H57: 310 | I57: =IF(C57="ja",ROUND(1000*1/1000*D57*Basis!$B$1,2),0) -> 0 | J57: =IF(C57="ja",ROUND(1000/F57*E57/1000*Basis!$B$4,2),IF(N57="ja",ROUND(1000/F57*E57/1000*Basis!$B$3,2),ROUND(1000/F57*E57/1000*Basis!$B$2,2))) -> 198.82 | K57: 198.82 | L57: 5283.82 | M57: 5593.82 | N57: nein | O57: 55
A58: 815 | B58: TH-Plan 8-0,8-9,2 DF | C58: nein | D58: 8.27205 | E58: =ROUND((VLOOKUP(A58,Gewichte!A:E,5,FALSE)*F58),0)+16 -> 784 | F58: 64 | G58: 4300 | H58: 235 | I58: =IF(C58="ja",ROUND(1000*1/1000*D58*Basis!$B$1,2),0) -> 0 | J58: =IF(C58="ja",ROUND(1000/F58*E58/1000*Basis!$B$4,2),IF(N58="ja",ROUND(1000/F58*E58/1000*Basis!$B$3,2),ROUND(1000/F58*E58/1000*Basis!$B$2,2))) -> 184.98 | K58: 184.98 | L58: 4484.98 | M58: 4719.98 | N58: nein | O58: 56
A59: 825 | B59: TH-Plan 8-0,8-12,0 DF | C59: nein | D59: 11.34452 | E59: =ROUND((VLOOKUP(A59,Gewichte!A:E,5,FALSE)*F59),0)+16 -> 808 | F59: 48 | G59: 5495 | H59: 340 | I59: =IF(C59="ja",ROUND(1000*1/1000*D59*Basis!$B$1,2),0) -> 0 | J59: =IF(C59="ja",ROUND(1000/F59*E59/1000*Basis!$B$4,2),IF(N59="ja",ROUND(1000/F59*E59/1000*Basis!$B$3,2),ROUND(1000/F59*E59/1000*Basis!$B$2,2))) -> 254.18 | K59: 254.18 | L59: 5749.18 | M59: 6089.18 | N59: nein | O59: 57
A60: 804 | B60: TH-Plan 12-0,8-6,9 DF | C60: nein | D60: 5.45053 | E60: 813 | F60: 96 | G60: 3340 | H60: 165 | I60: =IF(C60="ja",ROUND(1000*1/1000*D60*Basis!$B$1,2),0) -> 0 | J60: =IF(C60="ja",ROUND(1000/F60*E60/1000*Basis!$B$4,2),IF(N60="ja",ROUND(1000/F60*E60/1000*Basis!$B$3,2),ROUND(1000/F60*E60/1000*Basis!$B$2,2))) -> 127.88 | K60: 127.88 | L60: 3467.88 | M60: 3632.88 | N60: nein | O60: 58
A61: 814 | B61: TH-Plan 12-0,8-9,2 DF | C61: nein | D61: 8.29428 | E61: 784 | F61: 64 | G61: 4650 | H61: 235 | I61: =IF(C61="ja",ROUND(1000*1/1000*D61*Basis!$B$1,2),0) -> 0 | J61: =IF(C61="ja",ROUND(1000/F61*E61/1000*Basis!$B$4,2),IF(N61="ja",ROUND(1000/F61*E61/1000*Basis!$B$3,2),ROUND(1000/F61*E61/1000*Basis!$B$2,2))) -> 184.98 | K61: 184.98 | L61: 4834.98 | M61: 5069.98 | N61: nein | O61: 59
A62: 824 | B62: TH-Plan 12-0,8-12,0 DF | C62: nein | D62: 11.37502 | E62: 808 | F62: 48 | G62: 5940 | H62: 340 | I62: =IF(C62="ja",ROUND(1000*1/1000*D62*Basis!$B$1,2),0) -> 0 | J62: =IF(C62="ja",ROUND(1000/F62*E62/1000*Basis!$B$4,2),IF(N62="ja",ROUND(1000/F62*E62/1000*Basis!$B$3,2),ROUND(1000/F62*E62/1000*Basis!$B$2,2))) -> 254.18 | K62: 254.18 | L62: 6194.18 | M62: 6534.18 | N62: nein | O62: 60
A63: 806 | B63: TH-Plan 12-1,0-6,0 DF | C63: nein | D63: 5.43592 | E63: 866 | F63: 80 | G63: 3900 | H63: 210 | I63: =IF(C63="ja",ROUND(1000*1/1000*D63*Basis!$B$1,2),0) -> 0 | J63: =IF(C63="ja",ROUND(1000/F63*E63/1000*Basis!$B$4,2),IF(N63="ja",ROUND(1000/F63*E63/1000*Basis!$B$3,2),ROUND(1000/F63*E63/1000*Basis!$B$2,2))) -> 163.46 | K63: 163.46 | L63: 4063.46 | M63: 4273.46 | N63: nein | O63: 61
A64: 816 | B64: TH-Plan 12-1,0-9,2 DF | C64: nein | D64: 8.27205 | E64: 789 | F64: 48 | G64: 5555 | H64: 275 | I64: =IF(C64="ja",ROUND(1000*1/1000*D64*Basis!$B$1,2),0) -> 0 | J64: =IF(C64="ja",ROUND(1000/F64*E64/1000*Basis!$B$4,2),IF(N64="ja",ROUND(1000/F64*E64/1000*Basis!$B$3,2),ROUND(1000/F64*E64/1000*Basis!$B$2,2))) -> 248.21 | K64: 248.21 | L64: 5803.21 | M64: 6078.21 | N64: nein | O64: 62
A65: 826 | B65: TH-Plan 12-1,0-12,0 DF | C65: nein | D65: 11.34452 | E65: 875 | F65: 40 | G65: 7175 | H65: 375 | I65: =IF(C65="ja",ROUND(1000*1/1000*D65*Basis!$B$1,2),0) -> 0 | J65: =IF(C65="ja",ROUND(1000/F65*E65/1000*Basis!$B$4,2),IF(N65="ja",ROUND(1000/F65*E65/1000*Basis!$B$3,2),ROUND(1000/F65*E65/1000*Basis!$B$2,2))) -> 330.31 | K65: 330.31 | L65: 7505.31 | M65: 7880.31 | N65: nein | O65: 63
A66: 807 | B66: TH-Plan 12-1,2-6,0 DF | C66: nein | D66: 5.43592 | E66: =ROUND((VLOOKUP(A66,Gewichte!A:E,5,FALSE)*F66),0)+16 -> 920 | F66: 80 | G66: 4580 | H66: 225 | I66: =IF(C66="ja",ROUND(1000*1/1000*D66*Basis!$B$1,2),0) -> 0 | J66: =IF(C66="ja",ROUND(1000/F66*E66/1000*Basis!$B$4,2),IF(N66="ja",ROUND(1000/F66*E66/1000*Basis!$B$3,2),ROUND(1000/F66*E66/1000*Basis!$B$2,2))) -> 173.65 | K66: 173.65 | L66: 4753.65 | M66: 4978.65 | N66: nein | O66: 64
A67: 817 | B67: TH-Plan 12-1,2-9,2 DF | C67: nein | D67: 8.27205 | E67: =ROUND((VLOOKUP(A67,Gewichte!A:E,5,FALSE)*F67),0)+16 -> 846 | F67: 48 | G67: 6435 | H67: 295 | I67: =IF(C67="ja",ROUND(1000*1/1000*D67*Basis!$B$1,2),0) -> 0 | J67: =IF(C67="ja",ROUND(1000/F67*E67/1000*Basis!$B$4,2),IF(N67="ja",ROUND(1000/F67*E67/1000*Basis!$B$3,2),ROUND(1000/F67*E67/1000*Basis!$B$2,2))) -> 266.14 | K67: 266.14 | L67: 6701.14 | M67: 6996.14 | N67: nein | O67: 65
A68: 827 | B68: TH-Plan 12-1,2-12,0 DF | C68: nein | D68: 11.34452 | E68: =ROUND((VLOOKUP(A68,Gewichte!A:E,5,FALSE)*F68),0)+16 -> 964 | F68: 40 | G68: 7950 | H68: 395 | I68: =IF(C68="ja",ROUND(1000*1/1000*D68*Basis!$B$1,2),0) -> 0 | J68: =IF(C68="ja",ROUND(1000/F68*E68/1000*Basis!$B$4,2),IF(N68="ja",ROUND(1000/F68*E68/1000*Basis!$B$3,2),ROUND(1000/F68*E68/1000*Basis!$B$2,2))) -> 363.91 | K68: 363.91 | L68: 8313.91 | M68: 8708.91 | N68: nein | O68: 66
A69: 8707 | B69: TH-Plan 12-1,2-10,0 DF | C69: nein | D69: 9.41565 | E69: =ROUND((VLOOKUP(A69,Gewichte!A:E,5,FALSE)*F69),0)+16 -> 863 | F69: 45 | G69: 6845 | H69: 385 | I69: =IF(C69="ja",ROUND(1000*1/1000*D69*Basis!$B$1,2),0) -> 0 | J69: =IF(C69="ja",ROUND(1000/F69*E69/1000*Basis!$B$4,2),IF(N69="ja",ROUND(1000/F69*E69/1000*Basis!$B$3,2),ROUND(1000/F69*E69/1000*Basis!$B$2,2))) -> 289.58 | K69: 289.58 | L69: 7134.58 | M69: 7519.58 | N69: nein | O69: 67
A70: 809 | B70: TH-Plan 12-1,4-6,0 DF | C70: nein | D70: 5.45053 | E70: =ROUND((VLOOKUP(A70,Gewichte!A:E,5,FALSE)*F70),0)+16 -> 848 | F70: 64 | G70: 5325 | H70: 235 | I70: =IF(C70="ja",ROUND(1000*1/1000*D70*Basis!$B$1,2),0) -> 0 | J70: =IF(C70="ja",ROUND(1000/F70*E70/1000*Basis!$B$4,2),IF(N70="ja",ROUND(1000/F70*E70/1000*Basis!$B$3,2),ROUND(1000/F70*E70/1000*Basis!$B$2,2))) -> 200.08 | K70: 200.08 | L70: 5525.08 | M70: 5760.08 | N70: nein | O70: 68
A71: 819 | B71: TH-Plan 12-1,4-9,2 DF | C71: nein | D71: 8.27205 | E71: =ROUND((VLOOKUP(A71,Gewichte!A:E,5,FALSE)*F71),0)+16 -> 965 | F71: 48 | G71: 7790 | H71: 365 | I71: =IF(C71="ja",ROUND(1000*1/1000*D71*Basis!$B$1,2),0) -> 0 | J71: =IF(C71="ja",ROUND(1000/F71*E71/1000*Basis!$B$4,2),IF(N71="ja",ROUND(1000/F71*E71/1000*Basis!$B$3,2),ROUND(1000/F71*E71/1000*Basis!$B$2,2))) -> 303.57 | K71: =I71+J71 -> 303.57 | L71: =G71+K71 -> 8093.57 | M71: =G71+H71+K71 -> 8458.57 | N71: nein | O71: 69
A72: 829 | B72: TH-Plan 12-1,4-12,0 DF | C72: nein | D72: 11.34452 | E72: =ROUND((VLOOKUP(A72,Gewichte!A:E,5,FALSE)*F72),0)+16 -> 896 | F72: 32 | G72: 9225 | H72: 485 | I72: =IF(C72="ja",ROUND(1000*1/1000*D72*Basis!$B$1,2),0) -> 0 | J72: =IF(C72="ja",ROUND(1000/F72*E72/1000*Basis!$B$4,2),IF(N72="ja",ROUND(1000/F72*E72/1000*Basis!$B$3,2),ROUND(1000/F72*E72/1000*Basis!$B$2,2))) -> 422.8 | K72: 422.8 | L72: 9647.8 | M72: 10132.8 | N72: nein | O72: 70
A73: 820 | B73: TH-Plan 24,0 Füll N+F | C73: nein | D73: 11.34452 | E73: =ROUND((VLOOKUP(A73,Gewichte!A:E,5,FALSE)*F73),0)+16 -> 803 | F73: 48 | G73: 5750 | H73: 340 | I73: =IF(C73="ja",ROUND(1000*1/1000*D73*Basis!$B$1,2),0) -> 0 | J73: =IF(C73="ja",ROUND(1000/F73*E73/1000*Basis!$B$4,2),IF(N73="ja",ROUND(1000/F73*E73/1000*Basis!$B$3,2),ROUND(1000/F73*E73/1000*Basis!$B$2,2))) -> 252.61 | K73: 252.61 | L73: 6002.61 | M73: 6342.61 | N73: nein | O73: 71
A74: 822+21 | B74: TH-Plan PFz Objektverfüllziegel | C74: nein | D74: 11.34452 | E74: =528+279 -> 807 | F74: 64 | G74: 5590 | H74: 340 | I74: =IF(C74="ja",ROUND(1000*1/1000*D74*Basis!$B$1,2),0) -> 0 | J74: =IF(C74="ja",ROUND(1000/F74*E74/1000*Basis!$B$4,2),IF(N74="ja",ROUND(1000/F74*E74/1000*Basis!$B$3,2),ROUND(1000/F74*E74/1000*Basis!$B$2,2))) -> 190.4 | K74: 190.4 | L74: 5780.4 | M74: 6120.4 | N74: nein | O74: 72
A75: 830 | B75: ecoton Schalungsziegel 17,5 | C75: nein | D75: 8.29428 | E75: =ROUND((VLOOKUP(A75,Gewichte!A:E,5,FALSE)*F75),0)+16 -> 643 | F75: 64 | G75: 5820 | H75: 255 | I75: =IF(C75="ja",ROUND(1000*1/1000*D75*Basis!$B$1,2),0) -> 0 | J75: =IF(C75="ja",ROUND(1000/F75*E75/1000*Basis!$B$4,2),IF(N75="ja",ROUND(1000/F75*E75/1000*Basis!$B$3,2),ROUND(1000/F75*E75/1000*Basis!$B$2,2))) -> 151.71 | K75: 151.71 | L75: 5971.71 | M75: 6226.71 | N75: nein | O75: 73
A76: 831 | B76: ecoton Schalungsziegel 24,0 | C76: nein | D76: 11.37502 | E76: =ROUND((VLOOKUP(A76,Gewichte!A:E,5,FALSE)*F76),0)+16 -> 611 | F76: 48 | G76: 6620 | H76: 340 | I76: =IF(C76="ja",ROUND(1000*1/1000*D76*Basis!$B$1,2),0) -> 0 | J76: =IF(C76="ja",ROUND(1000/F76*E76/1000*Basis!$B$4,2),IF(N76="ja",ROUND(1000/F76*E76/1000*Basis!$B$3,2),ROUND(1000/F76*E76/1000*Basis!$B$2,2))) -> 192.21 | K76: 192.21 | L76: 6812.21 | M76: 7152.21 | N76: nein | O76: 74
A77: 832 | B77: ecoton Schalungsziegel 30,0 | C77: nein | D77: 14.21877 | E77: =ROUND((VLOOKUP(A77,Gewichte!A:E,5,FALSE)*F77),0)+16 -> 498 | F77: 36 | G77: 8390 | H77: 430 | I77: =IF(C77="ja",ROUND(1000*1/1000*D77*Basis!$B$1,2),0) -> 0 | J77: =IF(C77="ja",ROUND(1000/F77*E77/1000*Basis!$B$4,2),IF(N77="ja",ROUND(1000/F77*E77/1000*Basis!$B$3,2),ROUND(1000/F77*E77/1000*Basis!$B$2,2))) -> 208.88 | K77: 208.88 | L77: 8598.88 | M77: 9028.88 | N77: nein | O77: 75
A78: 7080 | B78: ecoton-Block 6-0,60-12,0 DF | C78: nein | D78: 10.94963 | E78: =ROUND((VLOOKUP(A78,Gewichte!A:E,5,FALSE)*F78),0)+16 -> 634 | F78: 48 | G78: 7790 | H78: 340 | I78: =IF(C78="ja",ROUND(1000*1/1000*D78*Basis!$B$1,2),0) -> 0 | J78: =IF(C78="ja",ROUND(1000/F78*E78/1000*Basis!$B$4,2),IF(N78="ja",ROUND(1000/F78*E78/1000*Basis!$B$3,2),ROUND(1000/F78*E78/1000*Basis!$B$2,2))) -> 199.45 | K78: 199.45 | L78: 7989.45 | M78: 8329.45 | N78: nein | O78: 76
A79: 7088 | B79: ecoton-Block 6-0,60-14,0 DF | C79: nein | D79: 12.74957 | E79: =ROUND((VLOOKUP(A79,Gewichte!A:E,5,FALSE)*F79),0)+16 -> 574 | F79: 36 | G79: 9440 | H79: 385 | I79: =IF(C79="ja",ROUND(1000*1/1000*D79*Basis!$B$1,2),0) -> 0 | J79: =IF(C79="ja",ROUND(1000/F79*E79/1000*Basis!$B$4,2),IF(N79="ja",ROUND(1000/F79*E79/1000*Basis!$B$3,2),ROUND(1000/F79*E79/1000*Basis!$B$2,2))) -> 240.76 | K79: 240.76 | L79: 9680.76 | M79: 10065.76 | N79: nein | O79: 77
A80: 7089 | B80: ecoton-Block 6-0,60-16,0 DF | C80: nein | D80: 14.6995 | E80: =ROUND((VLOOKUP(A80,Gewichte!A:E,5,FALSE)*F80),0)+16 -> 646 | F80: 36 | G80: 11440 | H80: 465 | I80: =IF(C80="ja",ROUND(1000*1/1000*D80*Basis!$B$1,2),0) -> 0 | J80: =IF(C80="ja",ROUND(1000/F80*E80/1000*Basis!$B$4,2),IF(N80="ja",ROUND(1000/F80*E80/1000*Basis!$B$3,2),ROUND(1000/F80*E80/1000*Basis!$B$2,2))) -> 270.96 | K80: 270.96 | L80: 11710.96 | M80: 12175.96 | N80: nein | O80: 78
A81: 7091 | B81: ecoton-Block Eckziegel 36,5 | C81: nein | D81: 10.94963 | E81: 660 | F81: 48 | G81: 10250 | H81: 340 | I81: =IF(C81="ja",ROUND(1000*1/1000*D81*Basis!$B$1,2),0) -> 0 | J81: =IF(C81="ja",ROUND(1000/F81*E81/1000*Basis!$B$4,2),IF(N81="ja",ROUND(1000/F81*E81/1000*Basis!$B$3,2),ROUND(1000/F81*E81/1000*Basis!$B$2,2))) -> 207.63 | K81: 207.63 | L81: 10457.63 | M81: 10797.63 | N81: nein | O81: 79
A82: 7095 | B82: ecoton-Block Anfänger 36,5 | C82: nein | D82: 5.45265 | E82: 640 | F82: 80 | G82: 5100 | H82: 195 | I82: =IF(C82="ja",ROUND(1000*1/1000*D82*Basis!$B$1,2),0) -> 0 | J82: =IF(C82="ja",ROUND(1000/F82*E82/1000*Basis!$B$4,2),IF(N82="ja",ROUND(1000/F82*E82/1000*Basis!$B$3,2),ROUND(1000/F82*E82/1000*Basis!$B$2,2))) -> 120.8 | K82: 120.8 | L82: 5220.8 | M82: 5415.8 | N82: nein | O82: 80
A83: 7094 | B83: ecoton-Block Anfänger 42,5 | C83: nein | D83: 6.96839 | E83: 715 | F83: 60 | G83: 6860 | H83: 220 | I83: =IF(C83="ja",ROUND(1000*1/1000*D83*Basis!$B$1,2),0) -> 0 | J83: =IF(C83="ja",ROUND(1000/F83*E83/1000*Basis!$B$4,2),IF(N83="ja",ROUND(1000/F83*E83/1000*Basis!$B$3,2),ROUND(1000/F83*E83/1000*Basis!$B$2,2))) -> 179.94 | K83: 179.94 | L83: 7039.94 | M83: 7259.94 | N83: nein | O83: 81
A84: 7090 | B84: ecoton-Block 6-0,65-12,0 DF | C84: nein | D84: 10.94963 | E84: 693 | F84: 48 | G84: 6500 | H84: 340 | I84: =IF(C84="ja",ROUND(1000*1/1000*D84*Basis!$B$1,2),0) -> 0 | J84: =IF(C84="ja",ROUND(1000/F84*E84/1000*Basis!$B$4,2),IF(N84="ja",ROUND(1000/F84*E84/1000*Basis!$B$3,2),ROUND(1000/F84*E84/1000*Basis!$B$2,2))) -> 218.01 | K84: 218.01 | L84: 6718.01 | M84: 7058.01 | N84: nein | O84: 82
A85: 7098 | B85: ecoton-Block 6-0,65-14,0 DF | C85: nein | D85: 12.74957 | E85: 596 | F85: 36 | G85: 7890 | H85: 385 | I85: =IF(C85="ja",ROUND(1000*1/1000*D85*Basis!$B$1,2),0) -> 0 | J85: =IF(C85="ja",ROUND(1000/F85*E85/1000*Basis!$B$4,2),IF(N85="ja",ROUND(1000/F85*E85/1000*Basis!$B$3,2),ROUND(1000/F85*E85/1000*Basis!$B$2,2))) -> 249.99 | K85: 249.99 | L85: 8139.99 | M85: 8524.99 | N85: nein | O85: 83
A86: 7099 | B86: ecoton-Block 6-0,65-16,0 DF | C86: nein | D86: 14.6995 | E86: 689 | F86: 36 | G86: 9540 | H86: 465 | I86: =IF(C86="ja",ROUND(1000*1/1000*D86*Basis!$B$1,2),0) -> 0 | J86: =IF(C86="ja",ROUND(1000/F86*E86/1000*Basis!$B$4,2),IF(N86="ja",ROUND(1000/F86*E86/1000*Basis!$B$3,2),ROUND(1000/F86*E86/1000*Basis!$B$2,2))) -> 289 | K86: 289 | L86: 9829 | M86: 10294 | N86: nein | O86: 84
A87: 1990 | B87: ecoton Babyblock 36,5 | C87: nein | D87: 5.19877 | E87: 697 | F87: 92 | G87: 6100 | H87: 195 | I87: =IF(C87="ja",ROUND(1000*1/1000*D87*Basis!$B$1,2),0) -> 0 | J87: =IF(C87="ja",ROUND(1000/F87*E87/1000*Basis!$B$4,2),IF(N87="ja",ROUND(1000/F87*E87/1000*Basis!$B$3,2),ROUND(1000/F87*E87/1000*Basis!$B$2,2))) -> 114.4 | K87: 114.4 | L87: 6214.4 | M87: 6409.4 | N87: nein | O87: 85
A88: 1998 | B88: ecoton Babyblock 42,5 | C88: nein | D88: 6.05337 | E88: 635 | F88: 90 | G88: 7030 | H88: 220 | I88: =IF(C88="ja",ROUND(1000*1/1000*D88*Basis!$B$1,2),0) -> 0 | J88: =IF(C88="ja",ROUND(1000/F88*E88/1000*Basis!$B$4,2),IF(N88="ja",ROUND(1000/F88*E88/1000*Basis!$B$3,2),ROUND(1000/F88*E88/1000*Basis!$B$2,2))) -> 106.54 | K88: 106.54 | L88: 7136.54 | M88: 7356.54 | N88: nein | O88: 86
A89: 710 | B89: ecoton-Block 6-0,65-12,0 DF | C89: nein | D89: 10.94963 | E89: 680 | F89: 48 | G89: 7425 | H89: 340 | I89: =IF(C89="ja",ROUND(1000*1/1000*D89*Basis!$B$1,2),0) -> 0 | J89: =IF(C89="ja",ROUND(1000/F89*E89/1000*Basis!$B$4,2),IF(N89="ja",ROUND(1000/F89*E89/1000*Basis!$B$3,2),ROUND(1000/F89*E89/1000*Basis!$B$2,2))) -> 213.92 | K89: 213.92 | L89: 7638.92 | M89: 7978.92 | N89: nein | O89: 87
A90: 718 | B90: ecoton-Block 6-0,65-14,0 DF | C90: nein | D90: 12.74957 | E90: 596 | F90: 36 | G90: 8720 | H90: 385 | I90: =IF(C90="ja",ROUND(1000*1/1000*D90*Basis!$B$1,2),0) -> 0 | J90: =IF(C90="ja",ROUND(1000/F90*E90/1000*Basis!$B$4,2),IF(N90="ja",ROUND(1000/F90*E90/1000*Basis!$B$3,2),ROUND(1000/F90*E90/1000*Basis!$B$2,2))) -> 249.99 | K90: 249.99 | L90: 8969.99 | M90: 9354.99 | N90: nein | O90: 88
A91: 523 | B91: Hlz-10-0,8-12 DF | C91: nein | D91: 10.84336 | E91: 765 | F91: 48 | G91: 5450 | H91: 340 | I91: =IF(C91="ja",ROUND(1000*1/1000*D91*Basis!$B$1,2),0) -> 0 | J91: =IF(C91="ja",ROUND(1000/F91*E91/1000*Basis!$B$4,2),IF(N91="ja",ROUND(1000/F91*E91/1000*Basis!$B$3,2),ROUND(1000/F91*E91/1000*Basis!$B$2,2))) -> 240.66 | K91: 240.66 | L91: 5690.66 | M91: 6030.66 | N91: nein | O91: 89
A92: 702 | B92: Hlz - 10 - 0,8 - 10 DF | C92: nein | D92: 8.99969 | E92: 711 | F92: 54 | G92: 4490 | H92: 280 | I92: =IF(C92="ja",ROUND(1000*1/1000*D92*Basis!$B$1,2),0) -> 0 | J92: =IF(C92="ja",ROUND(1000/F92*E92/1000*Basis!$B$4,2),IF(N92="ja",ROUND(1000/F92*E92/1000*Basis!$B$3,2),ROUND(1000/F92*E92/1000*Basis!$B$2,2))) -> 198.82 | K92: 198.82 | L92: 4688.82 | M92: 4968.82 | N92: nein | O92: 90
A93: 740 | B93: Hlz - 10 - 0,8 - 12 DF | C93: nein | D93: 10.94963 | E93: 768 | F93: 48 | G93: 5700 | H93: 365 | I93: =IF(C93="ja",ROUND(1000*1/1000*D93*Basis!$B$1,2),0) -> 0 | J93: =IF(C93="ja",ROUND(1000/F93*E93/1000*Basis!$B$4,2),IF(N93="ja",ROUND(1000/F93*E93/1000*Basis!$B$3,2),ROUND(1000/F93*E93/1000*Basis!$B$2,2))) -> 241.6 | K93: 241.6 | L93: 5941.6 | M93: 6306.6 | N93: nein | O93: 91
A94: 767 | B94: Eckziegel/Anfänger 30,0 | C94: nein | D94: 6.3763 | E94: =ROUND((VLOOKUP(A94,Gewichte!A:E,5,FALSE)*F94),0)+16 -> 621 | F94: 72 | G94: 4780 | H94: 220 | I94: =IF(C94="ja",ROUND(1000*1/1000*D94*Basis!$B$1,2),0) -> 0 | J94: =IF(C94="ja",ROUND(1000/F94*E94/1000*Basis!$B$4,2),IF(N94="ja",ROUND(1000/F94*E94/1000*Basis!$B$3,2),ROUND(1000/F94*E94/1000*Basis!$B$2,2))) -> 130.24 | K94: 130.24 | L94: 4910.24 | M94: 5130.24 | N94: nein | O94: 92
A95: 102 | B95: Hlz-12-1,2-1,0 DF | C95: nein | D95: 0.73239 | E95: 610 | F95: 396 | G95: 810 | H95: 55 | I95: =IF(C95="ja",ROUND(1000*1/1000*D95*Basis!$B$1,2),0) -> 0 | J95: =IF(C95="ja",ROUND(1000/F95*E95/1000*Basis!$B$4,2),IF(N95="ja",ROUND(1000/F95*E95/1000*Basis!$B$3,2),ROUND(1000/F95*E95/1000*Basis!$B$2,2))) -> 23.26 | K95: 23.26 | L95: 833.26 | M95: 888.26 | N95: nein | O95: 93
A96: 105 | B96: Hlz-8-0,8-1,0 NF | C96: nein | D96: 1 | E96: =ROUND((VLOOKUP(A96,Gewichte!A:E,5,FALSE)*F96),0)+16 -> 667 | F96: 434 | G96: 780 | H96: 55 | I96: =IF(C96="ja",ROUND(1000*1/1000*D96*Basis!$B$1,2),0) -> 0 | J96: =IF(C96="ja",ROUND(1000/F96*E96/1000*Basis!$B$4,2),IF(N96="ja",ROUND(1000/F96*E96/1000*Basis!$B$3,2),ROUND(1000/F96*E96/1000*Basis!$B$2,2))) -> 23.21 | K96: 23.21 | L96: 803.21 | M96: 858.21 | N96: nein | O96: 94
A97: 106 | B97: Hlz-12-1,2-1,0 NF | C97: nein | D97: 1 | E97: 883 | F97: 434 | G97: 895 | H97: 45 | I97: =IF(C97="ja",ROUND(1000*1/1000*D97*Basis!$B$1,2),0) -> 0 | J97: =IF(C97="ja",ROUND(1000/F97*E97/1000*Basis!$B$4,2),IF(N97="ja",ROUND(1000/F97*E97/1000*Basis!$B$3,2),ROUND(1000/F97*E97/1000*Basis!$B$2,2))) -> 30.72 | K97: 30.72 | L97: 925.72 | M97: 970.72 | N97: nein | O97: 95
A98: 110 | B98: Hlz-8-0,8-1,0 DF | C98: nein | D98: 1.59155 | E98: 669 | F98: 272 | G98: 1020 | H98: 65 | I98: =IF(C98="ja",ROUND(1000*1/1000*D98*Basis!$B$1,2),0) -> 0 | J98: =IF(C98="ja",ROUND(1000/F98*E98/1000*Basis!$B$4,2),IF(N98="ja",ROUND(1000/F98*E98/1000*Basis!$B$3,2),ROUND(1000/F98*E98/1000*Basis!$B$2,2))) -> 37.14 | K98: 37.14 | L98: 1057.14 | M98: 1122.14 | N98: nein | O98: 96
A99: 112 | B99: Hlz-12-1,2-2,0 DF | C99: nein | D99: 1.59155 | E99: =ROUND((VLOOKUP(A99,Gewichte!A:E,5,FALSE)*F99),0)+16 -> 881 | F99: 272 | G99: 1200 | H99: 70 | I99: =IF(C99="ja",ROUND(1000*1/1000*D99*Basis!$B$1,2),0) -> 0 | J99: =IF(C99="ja",ROUND(1000/F99*E99/1000*Basis!$B$4,2),IF(N99="ja",ROUND(1000/F99*E99/1000*Basis!$B$3,2),ROUND(1000/F99*E99/1000*Basis!$B$2,2))) -> 48.91 | K99: 48.91 | L99: 1248.91 | M99: 1318.91 | N99: nein | O99: 97
A100: 114 | B100: Hlz-12-1,0-2,0 DF | C100: nein | D100: 1.52174 | E100: =ROUND((VLOOKUP(A100,Gewichte!A:E,5,FALSE)*F100),0)+16 -> 823 | F100: 291 | G100: 1350 | H100: 65 | I100: =IF(C100="ja",ROUND(1000*1/1000*D100*Basis!$B$1,2),0) -> 0 | J100: =IF(C100="ja",ROUND(1000/F100*E100/1000*Basis!$B$4,2),IF(N100="ja",ROUND(1000/F100*E100/1000*Basis!$B$3,2),ROUND(1000/F100*E100/1000*Basis!$B$2,2))) -> 42.71 | K100: 42.71 | L100: 1392.71 | M100: 1457.71 | N100: nein | O100: 98
A101: 115 | B101: Hlz-12-1,0-3,0 DF | C101: nein | D101: 2.42192 | E101: 699 | F101: 159 | G101: 1805 | H101: 105 | I101: =IF(C101="ja",ROUND(1000*1/1000*D101*Basis!$B$1,2),0) -> 0 | J101: =IF(C101="ja",ROUND(1000/F101*E101/1000*Basis!$B$4,2),IF(N101="ja",ROUND(1000/F101*E101/1000*Basis!$B$3,2),ROUND(1000/F101*E101/1000*Basis!$B$2,2))) -> 66.38 | K101: 66.38 | L101: 1871.38 | M101: 1976.38 | N101: nein | O101: 99
A102: 125 | B102: Hlz-12-1,0-5,0 DF | C102: nein | D102: 4.15187 | E102: 690 | F102: 92 | G102: 2695 | H102: 165 | I102: =IF(C102="ja",ROUND(1000*1/1000*D102*Basis!$B$1,2),0) -> 0 | J102: =IF(C102="ja",ROUND(1000/F102*E102/1000*Basis!$B$4,2),IF(N102="ja",ROUND(1000/F102*E102/1000*Basis!$B$3,2),ROUND(1000/F102*E102/1000*Basis!$B$2,2))) -> 113.25 | K102: 113.25 | L102: 2808.25 | M102: 2973.25 | N102: nein | O102: 100
A103: 130 | B103: Hlz-12-0,8-6,0 DF | C103: nein | D103: 5.05144 | E103: 610 | F103: 76 | G103: 2975 | H103: 190 | I103: =IF(C103="ja",ROUND(1000*1/1000*D103*Basis!$B$1,2),0) -> 0 | J103: =IF(C103="ja",ROUND(1000/F103*E103/1000*Basis!$B$4,2),IF(N103="ja",ROUND(1000/F103*E103/1000*Basis!$B$3,2),ROUND(1000/F103*E103/1000*Basis!$B$2,2))) -> 121.2 | K103: 121.2 | L103: 3096.2 | M103: 3286.2 | N103: nein | O103: 101
A104: 132 | B104: Hlz-12-1,2-6,0 DF | C104: nein | D104: 5.05144 | E104: 844 | F104: 76 | G104: 3230 | H104: 220 | I104: =IF(C104="ja",ROUND(1000*1/1000*D104*Basis!$B$1,2),0) -> 0 | J104: =IF(C104="ja",ROUND(1000/F104*E104/1000*Basis!$B$4,2),IF(N104="ja",ROUND(1000/F104*E104/1000*Basis!$B$3,2),ROUND(1000/F104*E104/1000*Basis!$B$2,2))) -> 167.69 | K104: 167.69 | L104: 3397.69 | M104: 3617.69 | N104: nein | O104: 102
A105: 501 | B105: Hlz-12-1,2-3,5 DF | C105: nein | D105: 2.93674 | E105: 576 | F105: 144 | G105: 2975 | H105: 145 | I105: =IF(C105="ja",ROUND(1000*1/1000*D105*Basis!$B$1,2),0) -> 0 | J105: =IF(C105="ja",ROUND(1000/F105*E105/1000*Basis!$B$4,2),IF(N105="ja",ROUND(1000/F105*E105/1000*Basis!$B$3,2),ROUND(1000/F105*E105/1000*Basis!$B$2,2))) -> 60.4 | K105: 60.4 | L105: 3035.4 | M105: 3180.4 | N105: nein | O105: 103
A106: 505 | B106: Hlz-8-0,8-6,0 DF | C106: nein | D106: 5.19577 | E106: =ROUND((VLOOKUP(A106,Gewichte!A:E,5,FALSE)*F106),0)+16 -> 740 | F106: 94 | G106: 2495 | H106: 165 | I106: =IF(C106="ja",ROUND(1000*1/1000*D106*Basis!$B$1,2),0) -> 0 | J106: =IF(C106="ja",ROUND(1000/F106*E106/1000*Basis!$B$4,2),IF(N106="ja",ROUND(1000/F106*E106/1000*Basis!$B$3,2),ROUND(1000/F106*E106/1000*Basis!$B$2,2))) -> 118.87 | K106: 118.87 | L106: 2613.87 | M106: 2778.87 | N106: nein | O106: 104
A107: 512 | B107: Hlz-8-0,8-10,0 DF | C107: nein | D107: 8.75254 | E107: =ROUND((VLOOKUP(A107,Gewichte!A:E,5,FALSE)*F107),0)+16 -> 767 | F107: 60 | G107: 4775 | H107: 310 | I107: =IF(C107="ja",ROUND(1000*1/1000*D107*Basis!$B$1,2),0) -> 0 | J107: =IF(C107="ja",ROUND(1000/F107*E107/1000*Basis!$B$4,2),IF(N107="ja",ROUND(1000/F107*E107/1000*Basis!$B$3,2),ROUND(1000/F107*E107/1000*Basis!$B$2,2))) -> 193.03 | K107: 193.03 | L107: 4968.03 | M107: 5278.03 | N107: nein | O107: 105
A108: 515 | B108: Hlz-8-0,8-9,1 DF | C108: nein | D108: 7.90661 | E108: =ROUND((VLOOKUP(A108,Gewichte!A:E,5,FALSE)*F108),0)+16 -> 683 | F108: 58 | G108: 3565 | H108: 235 | I108: =IF(C108="ja",ROUND(1000*1/1000*D108*Basis!$B$1,2),0) -> 0 | J108: =IF(C108="ja",ROUND(1000/F108*E108/1000*Basis!$B$4,2),IF(N108="ja",ROUND(1000/F108*E108/1000*Basis!$B$3,2),ROUND(1000/F108*E108/1000*Basis!$B$2,2))) -> 177.82 | K108: 177.82 | L108: 3742.82 | M108: 3977.82 | N108: nein | O108: 106
A109: 525 | B109: Hlz-8-0,8-12,0 DF | C109: nein | D109: 10.84336 | E109: =ROUND((VLOOKUP(A109,Gewichte!A:E,5,FALSE)*F109),0)+16 -> 707 | F109: 44 | G109: 4605 | H109: 340 | I109: =IF(C109="ja",ROUND(1000*1/1000*D109*Basis!$B$1,2),0) -> 0 | J109: =IF(C109="ja",ROUND(1000/F109*E109/1000*Basis!$B$4,2),IF(N109="ja",ROUND(1000/F109*E109/1000*Basis!$B$3,2),ROUND(1000/F109*E109/1000*Basis!$B$2,2))) -> 242.63 | K109: 242.63 | L109: 4847.63 | M109: 5187.63 | N109: nein | O109: 107
A110: 506 | B110: Hlz-12-1,0-6,0 DF | C110: nein | D110: 5.19577 | E110: 990 | F110: 96 | G110: 3075 | H110: 195 | I110: =IF(C110="ja",ROUND(1000*1/1000*D110*Basis!$B$1,2),0) -> 0 | J110: =IF(C110="ja",ROUND(1000/F110*E110/1000*Basis!$B$4,2),IF(N110="ja",ROUND(1000/F110*E110/1000*Basis!$B$3,2),ROUND(1000/F110*E110/1000*Basis!$B$2,2))) -> 155.72 | K110: 155.72 | L110: 3230.72 | M110: 3425.72 | N110: nein | O110: 108
A111: 516 | B111: Hlz-12-1,0-9,1 DF | C111: nein | D111: 7.90661 | E111: 1014 | F111: 64 | G111: 4080 | H111: 270 | I111: =IF(C111="ja",ROUND(1000*1/1000*D111*Basis!$B$1,2),0) -> 0 | J111: =IF(C111="ja",ROUND(1000/F111*E111/1000*Basis!$B$4,2),IF(N111="ja",ROUND(1000/F111*E111/1000*Basis!$B$3,2),ROUND(1000/F111*E111/1000*Basis!$B$2,2))) -> 239.24 | K111: 239.24 | L111: 4319.24 | M111: 4589.24 | N111: nein | O111: 109
A112: 526 | B112: Hlz-12-1,0-12,0 DF | C112: nein | D112: 10.84336 | E112: =ROUND((VLOOKUP(A112,Gewichte!A:E,5,FALSE)*F112),0)+16 -> 995 | F112: 48 | G112: 5300 | H112: 360 | I112: =IF(C112="ja",ROUND(1000*1/1000*D112*Basis!$B$1,2),0) -> 0 | J112: =IF(C112="ja",ROUND(1000/F112*E112/1000*Basis!$B$4,2),IF(N112="ja",ROUND(1000/F112*E112/1000*Basis!$B$3,2),ROUND(1000/F112*E112/1000*Basis!$B$2,2))) -> 313.01 | K112: 313.01 | L112: 5613.01 | M112: 5973.01 | N112: nein | O112: 110
A113: 507 | B113: Hlz-12-1,2-6,0 DF | C113: nein | D113: 5.19577 | E113: =ROUND((VLOOKUP(A113,Gewichte!A:E,5,FALSE)*F113),0)+16 -> 1024 | F113: 96 | G113: 3440 | H113: 210 | I113: =IF(C113="ja",ROUND(1000*1/1000*D113*Basis!$B$1,2),0) -> 0 | J113: =IF(C113="ja",ROUND(1000/F113*E113/1000*Basis!$B$4,2),IF(N113="ja",ROUND(1000/F113*E113/1000*Basis!$B$3,2),ROUND(1000/F113*E113/1000*Basis!$B$2,2))) -> 161.07 | K113: 161.07 | L113: 3601.07 | M113: 3811.07 | N113: nein | O113: 111
A114: 517 | B114: Hlz-12-1,2-9,1 DF | C114: nein | D114: 7.90661 | E114: =ROUND((VLOOKUP(A114,Gewichte!A:E,5,FALSE)*F114),0)+16 -> 813 | F114: 48 | G114: 4890 | H114: 290 | I114: =IF(C114="ja",ROUND(1000*1/1000*D114*Basis!$B$1,2),0) -> 0 | J114: =IF(C114="ja",ROUND(1000/F114*E114/1000*Basis!$B$4,2),IF(N114="ja",ROUND(1000/F114*E114/1000*Basis!$B$3,2),ROUND(1000/F114*E114/1000*Basis!$B$2,2))) -> 255.76 | K114: 255.76 | L114: 5145.76 | M114: 5435.76 | N114: nein | O114: 112
A115: 527 | B115: Hlz-12-1,2-12,0 DF | C115: nein | D115: 10.84336 | E115: 1056 | F115: 40 | G115: 6450 | H115: 390 | I115: =IF(C115="ja",ROUND(1000*1/1000*D115*Basis!$B$1,2),0) -> 0 | J115: =IF(C115="ja",ROUND(1000/F115*E115/1000*Basis!$B$4,2),IF(N115="ja",ROUND(1000/F115*E115/1000*Basis!$B$3,2),ROUND(1000/F115*E115/1000*Basis!$B$2,2))) -> 398.64 | K115: 398.64 | L115: 6848.64 | M115: 7238.64 | N115: nein | O115: 113
A116: 707 | B116: Hlz-12-1,2-10,0 DF | C116: nein | D116: 8.99969 | E116: =ROUND((VLOOKUP(A116,Gewichte!A:E,5,FALSE)*F116),0)+16 -> 822 | F116: 45 | G116: 5825 | H116: 330 | I116: =IF(C116="ja",ROUND(1000*1/1000*D116*Basis!$B$1,2),0) -> 0 | J116: =IF(C116="ja",ROUND(1000/F116*E116/1000*Basis!$B$4,2),IF(N116="ja",ROUND(1000/F116*E116/1000*Basis!$B$3,2),ROUND(1000/F116*E116/1000*Basis!$B$2,2))) -> 275.83 | K116: 275.83 | L116: 6100.83 | M116: 6430.83 | N116: nein | O116: 114
A117: 509 | B117: Hlz-12-1,4-6,0 DF | C117: nein | D117: 5.19577 | E117: =ROUND((VLOOKUP(A117,Gewichte!A:E,5,FALSE)*F117),0)+16 -> 811 | F117: 64 | G117: 5175 | H117: 240 | I117: =IF(C117="ja",ROUND(1000*1/1000*D117*Basis!$B$1,2),0) -> 0 | J117: =IF(C117="ja",ROUND(1000/F117*E117/1000*Basis!$B$4,2),IF(N117="ja",ROUND(1000/F117*E117/1000*Basis!$B$3,2),ROUND(1000/F117*E117/1000*Basis!$B$2,2))) -> 191.35 | K117: 191.35 | L117: 5366.35 | M117: 5606.35 | N117: nein | O117: 115
A118: 519 | B118: Hlz-12-1,4-9,1 DF | C118: nein | D118: 7.90661 | E118: 924 | F118: 48 | G118: 8190 | H118: 365 | I118: =IF(C118="ja",ROUND(1000*1/1000*D118*Basis!$B$1,2),0) -> 0 | J118: =IF(C118="ja",ROUND(1000/F118*E118/1000*Basis!$B$4,2),IF(N118="ja",ROUND(1000/F118*E118/1000*Basis!$B$3,2),ROUND(1000/F118*E118/1000*Basis!$B$2,2))) -> 290.68 | K118: 290.68 | L118: 8480.68 | M118: 8845.68 | N118: nein | O118: 116
A119: 529 | B119: Hlz-12-1,4-12,0 DF | C119: nein | D119: 10.84336 | E119: 846 | F119: 32 | G119: 8715 | H119: 485 | I119: =IF(C119="ja",ROUND(1000*1/1000*D119*Basis!$B$1,2),0) -> 0 | J119: =IF(C119="ja",ROUND(1000/F119*E119/1000*Basis!$B$4,2),IF(N119="ja",ROUND(1000/F119*E119/1000*Basis!$B$3,2),ROUND(1000/F119*E119/1000*Basis!$B$2,2))) -> 399.21 | K119: 399.21 | L119: 9114.21 | M119: 9599.21 | N119: nein | O119: 117
A120: 208 | B120: Mz - Vollziegel NF | C120: nein | D120: 1 | E120: 1187 | F120: 318 | G120: 1800 | H120: 85 | I120: =IF(C120="ja",ROUND(1000*1/1000*D120*Basis!$B$1,2),0) -> 0 | J120: =IF(C120="ja",ROUND(1000/F120*E120/1000*Basis!$B$4,2),IF(N120="ja",ROUND(1000/F120*E120/1000*Basis!$B$3,2),ROUND(1000/F120*E120/1000*Basis!$B$2,2))) -> 56.36 | K120: 56.36 | L120: 1856.36 | M120: 1941.36 | N120: nein | O120: 118
A121: 213 | B121: Mz-20-2,0-2,0 DF | C121: nein | D121: 1.59155 | E121: 1160 | F121: 194 | G121: 2105 | H121: 115 | I121: =IF(C121="ja",ROUND(1000*1/1000*D121*Basis!$B$1,2),0) -> 0 | J121: =IF(C121="ja",ROUND(1000/F121*E121/1000*Basis!$B$4,2),IF(N121="ja",ROUND(1000/F121*E121/1000*Basis!$B$3,2),ROUND(1000/F121*E121/1000*Basis!$B$2,2))) -> 90.29 | K121: 90.29 | L121: 2195.29 | M121: 2310.29 | N121: nein | O121: 119
A122: 217 | B122: Mz-20-2,0-3,0 DF N+F | C122: nein | D122: 2.49256 | E122: 1003 | F122: 111 | G122: 3460 | H122: 165 | I122: =IF(C122="ja",ROUND(1000*1/1000*D122*Basis!$B$1,2),0) -> 0 | J122: =IF(C122="ja",ROUND(1000/F122*E122/1000*Basis!$B$4,2),IF(N122="ja",ROUND(1000/F122*E122/1000*Basis!$B$3,2),ROUND(1000/F122*E122/1000*Basis!$B$2,2))) -> 136.44 | K122: 136.44 | L122: 3596.44 | M122: 3761.44 | N122: nein | O122: 120
A123: 218 | B123: Mz-20-2,0-3,0 DF | C123: nein | D123: 2.49256 | E123: 1077 | F123: 118 | G123: 3630 | H123: 165 | I123: =IF(C123="ja",ROUND(1000*1/1000*D123*Basis!$B$1,2),0) -> 0 | J123: =IF(C123="ja",ROUND(1000/F123*E123/1000*Basis!$B$4,2),IF(N123="ja",ROUND(1000/F123*E123/1000*Basis!$B$3,2),ROUND(1000/F123*E123/1000*Basis!$B$2,2))) -> 137.82 | K123: 137.82 | L123: 3767.82 | M123: 3932.82 | N123: nein | O123: 121
A124: 222 | B124: Mz-12-2,0-5,0 DF N+F | C124: nein | D124: 4.24874 | E124: 785 | F124: 50 | G124: 5810 | H124: 275 | I124: =IF(C124="ja",ROUND(1000*1/1000*D124*Basis!$B$1,2),0) -> 0 | J124: =IF(C124="ja",ROUND(1000/F124*E124/1000*Basis!$B$4,2),IF(N124="ja",ROUND(1000/F124*E124/1000*Basis!$B$3,2),ROUND(1000/F124*E124/1000*Basis!$B$2,2))) -> 237.07 | K124: 237.07 | L124: 6047.07 | M124: 6322.07 | N124: nein | O124: 122
A125: 223 | B125: Mz-20-2,0-5,0 DF N+F | C125: nein | D125: 4.284874 | E125: 880 | F125: 54 | G125: 6095 | H125: 275 | I125: =IF(C125="ja",ROUND(1000*1/1000*D125*Basis!$B$1,2),0) -> 0 | J125: =IF(C125="ja",ROUND(1000/F125*E125/1000*Basis!$B$4,2),IF(N125="ja",ROUND(1000/F125*E125/1000*Basis!$B$3,2),ROUND(1000/F125*E125/1000*Basis!$B$2,2))) -> 246.07 | K125: 246.07 | L125: 6341.07 | M125: 6616.07 | N125: nein | O125: 123
A126: 2091 | B126: Mz-20-2,0-4,0 DF N+F | C126: nein | D126: 3.44988 | E126: 970 | F126: 72 | G126: 4870 | H126: 250 | I126: =IF(C126="ja",ROUND(1000*1/1000*D126*Basis!$B$1,2),0) -> 0 | J126: =IF(C126="ja",ROUND(1000/F126*E126/1000*Basis!$B$4,2),IF(N126="ja",ROUND(1000/F126*E126/1000*Basis!$B$3,2),ROUND(1000/F126*E126/1000*Basis!$B$2,2))) -> 203.43 | K126: 203.43 | L126: 5073.43 | M126: 5323.43 | N126: nein | O126: 124
A127: 1932-12 | B127: ecoton PL 9 HAZ 30,0 | C127: nein | D127: 4.61329 | E127: 650 | F127: 108 | G127: 6340 | H127: 135 | I127: =IF(C127="ja",ROUND(1000*1/1000*D127*Basis!$B$1,2),0) -> 0 | J127: =IF(C127="ja",ROUND(1000/F127*E127/1000*Basis!$B$4,2),IF(N127="ja",ROUND(1000/F127*E127/1000*Basis!$B$3,2),ROUND(1000/F127*E127/1000*Basis!$B$2,2))) -> 90.88 | K127: =I127+J127 -> 90.88 | L127: =G127+K127 -> 6430.88 | M127: =G127+H127+K127 -> 6565.88 | N127: nein | O127: 125
A128: 1932E12 | B128: ecoton PL 9 HAZ 30,0 | C128: nein | D128: 4.61329 | E128: 650 | F128: 108 | G128: 8340 | H128: 135 | I128: =IF(C128="ja",ROUND(1000*1/1000*D128*Basis!$B$1,2),0) -> 0 | J128: =IF(C128="ja",ROUND(1000/F128*E128/1000*Basis!$B$4,2),IF(N128="ja",ROUND(1000/F128*E128/1000*Basis!$B$3,2),ROUND(1000/F128*E128/1000*Basis!$B$2,2))) -> 90.88 | K128: 90.88 | L128: 8430.88 | M128: 8565.88 | N128: nein | O128: 126
A129: 1980-12 | B129: ecoton PL 8 HAZ 36,5 | C129: nein | D129: 5.72785 | E129: 663 | F129: 96 | G129: 8230 | H129: 150 | I129: =IF(C129="ja",ROUND(1000*1/1000*D129*Basis!$B$1,2),0) -> 0 | J129: =IF(C129="ja",ROUND(1000/F129*E129/1000*Basis!$B$4,2),IF(N129="ja",ROUND(1000/F129*E129/1000*Basis!$B$3,2),ROUND(1000/F129*E129/1000*Basis!$B$2,2))) -> 104.28 | K129: 104.28 | L129: 8334.28 | M129: 8484.28 | N129: nein | O129: 127
A130: 1980E12 | B130: ecoton PL 8 HAZ 36,5 | C130: nein | D130: 5.72785 | E130: 663 | F130: 96 | G130: 10820 | H130: 150 | I130: =IF(C130="ja",ROUND(1000*1/1000*D130*Basis!$B$1,2),0) -> 0 | J130: =IF(C130="ja",ROUND(1000/F130*E130/1000*Basis!$B$4,2),IF(N130="ja",ROUND(1000/F130*E130/1000*Basis!$B$3,2),ROUND(1000/F130*E130/1000*Basis!$B$2,2))) -> 104.28 | K130: 104.28 | L130: 10924.28 | M130: 11074.28 | N130: nein | O130: 128
A131: 1980-16 | B131: ecoton PL 8 HAZ 36,5 | C131: nein | D131: 11.4557 | E131: 654 | F131: 48 | G131: 13490 | H131: 220 | I131: =IF(C131="ja",ROUND(1000*1/1000*D131*Basis!$B$1,2),0) -> 0 | J131: =IF(C131="ja",ROUND(1000/F131*E131/1000*Basis!$B$4,2),IF(N131="ja",ROUND(1000/F131*E131/1000*Basis!$B$3,2),ROUND(1000/F131*E131/1000*Basis!$B$2,2))) -> 205.74 | K131: 205.74 | L131: 13695.74 | M131: 13915.74 | N131: nein | O131: 129
A132: 1980E16 | B132: ecoton PL 8 HAZ 36,5 | C132: nein | D132: 11.4557 | E132: 654 | F132: 48 | G132: 16180 | H132: 220 | I132: =IF(C132="ja",ROUND(1000*1/1000*D132*Basis!$B$1,2),0) -> 0 | J132: =IF(C132="ja",ROUND(1000/F132*E132/1000*Basis!$B$4,2),IF(N132="ja",ROUND(1000/F132*E132/1000*Basis!$B$3,2),ROUND(1000/F132*E132/1000*Basis!$B$2,2))) -> 205.74 | K132: 205.74 | L132: 16385.74 | M132: 16605.74 | N132: nein | O132: 130
A133: 1980-22 | B133: ecoton PL 8 HAZ 36,5 | C133: nein | D133: 11.4557 | E133: 654 | F133: 48 | G133: 13490 | H133: 280 | I133: =IF(C133="ja",ROUND(1000*1/1000*D133*Basis!$B$1,2),0) -> 0 | J133: =IF(C133="ja",ROUND(1000/F133*E133/1000*Basis!$B$4,2),IF(N133="ja",ROUND(1000/F133*E133/1000*Basis!$B$3,2),ROUND(1000/F133*E133/1000*Basis!$B$2,2))) -> 205.74 | K133: 205.74 | L133: 13695.74 | M133: 13975.74 | N133: nein | O133: 131
A134: 1980E22 | B134: ecoton PL 8 HAZ 36,5 | C134: nein | D134: 11.4557 | E134: 654 | F134: 48 | G134: 16180 | H134: 280 | I134: =IF(C134="ja",ROUND(1000*1/1000*D134*Basis!$B$1,2),0) -> 0 | J134: =IF(C134="ja",ROUND(1000/F134*E134/1000*Basis!$B$4,2),IF(N134="ja",ROUND(1000/F134*E134/1000*Basis!$B$3,2),ROUND(1000/F134*E134/1000*Basis!$B$2,2))) -> 205.74 | K134: 205.74 | L134: 16385.74 | M134: 16665.74 | N134: nein | O134: 132
A135: 1988-12 | B135: ecoton PL 8 HAZ 42,5 | C135: nein | D135: 6.669415 | E135: 581 | F135: 72 | G135: 10290 | H135: 160 | I135: =IF(C135="ja",ROUND(1000*1/1000*D135*Basis!$B$1,2),0) -> 0 | J135: =IF(C135="ja",ROUND(1000/F135*E135/1000*Basis!$B$4,2),IF(N135="ja",ROUND(1000/F135*E135/1000*Basis!$B$3,2),ROUND(1000/F135*E135/1000*Basis!$B$2,2))) -> 121.85 | K135: 121.85 | L135: 10411.85 | M135: 10571.85 | N135: nein | O135: 133
A136: 1988E12 | B136: ecoton PL 8 HAZ 42,5 | C136: nein | D136: 6.669415 | E136: 581 | F136: 72 | G136: 12330 | H136: 160 | I136: =IF(C136="ja",ROUND(1000*1/1000*D136*Basis!$B$1,2),0) -> 0 | J136: =IF(C136="ja",ROUND(1000/F136*E136/1000*Basis!$B$4,2),IF(N136="ja",ROUND(1000/F136*E136/1000*Basis!$B$3,2),ROUND(1000/F136*E136/1000*Basis!$B$2,2))) -> 121.85 | K136: 121.85 | L136: 12451.85 | M136: 12611.85 | N136: nein | O136: 134
A137: 1988-16 | B137: ecoton PL 8 HAZ 42,5 | C137: nein | D137: 13.33883 | E137: 581 | F137: 36 | G137: 15420 | H137: 235 | I137: =IF(C137="ja",ROUND(1000*1/1000*D137*Basis!$B$1,2),0) -> 0 | J137: =IF(C137="ja",ROUND(1000/F137*E137/1000*Basis!$B$4,2),IF(N137="ja",ROUND(1000/F137*E137/1000*Basis!$B$3,2),ROUND(1000/F137*E137/1000*Basis!$B$2,2))) -> 243.7 | K137: 243.7 | L137: 15663.7 | M137: 15898.7 | N137: nein | O137: 135
A138: 1988E16 | B138: ecoton PL 8 HAZ 42,5 | C138: nein | D138: 13.33883 | E138: 581 | F138: 36 | G138: 18470 | H138: 235 | I138: =IF(C138="ja",ROUND(1000*1/1000*D138*Basis!$B$1,2),0) -> 0 | J138: =IF(C138="ja",ROUND(1000/F138*E138/1000*Basis!$B$4,2),IF(N138="ja",ROUND(1000/F138*E138/1000*Basis!$B$3,2),ROUND(1000/F138*E138/1000*Basis!$B$2,2))) -> 243.7 | K138: 243.7 | L138: 18713.7 | M138: 18948.7 | N138: nein | O138: 136
A139: 1988-22 | B139: ecoton PL 8 HAZ 42,5 | C139: nein | D139: 13.33883 | E139: 581 | F139: 36 | G139: 15420 | H139: 325 | I139: =IF(C139="ja",ROUND(1000*1/1000*D139*Basis!$B$1,2),0) -> 0 | J139: =IF(C139="ja",ROUND(1000/F139*E139/1000*Basis!$B$4,2),IF(N139="ja",ROUND(1000/F139*E139/1000*Basis!$B$3,2),ROUND(1000/F139*E139/1000*Basis!$B$2,2))) -> 243.7 | K139: 243.7 | L139: 15663.7 | M139: 15988.7 | N139: nein | O139: 137
A140: 1988E22 | B140: ecoton PL 8 HAZ 42,5 | C140: nein | D140: 13.33883 | E140: 581 | F140: 36 | G140: 18470 | H140: 325 | I140: =IF(C140="ja",ROUND(1000*1/1000*D140*Basis!$B$1,2),0) -> 0 | J140: =IF(C140="ja",ROUND(1000/F140*E140/1000*Basis!$B$4,2),IF(N140="ja",ROUND(1000/F140*E140/1000*Basis!$B$3,2),ROUND(1000/F140*E140/1000*Basis!$B$2,2))) -> 243.7 | K140: 243.7 | L140: 18713.7 | M140: 19038.7 | N140: nein | O140: 138
A141: 1742-12 | B141: evoton MZ 80 GS HAZ 30,0 | C141: ja | D141: 4.63197 | E141: 710 | F141: 108 | G141: 6970 | H141: 140 | I141: =IF(C141="ja",ROUND(1000*1/1000*D141*Basis!$B$1,2),0) -> 177.87 | J141: =IF(C141="ja",ROUND(1000/F141*E141/1000*Basis!$B$4,2),IF(N141="ja",ROUND(1000/F141*E141/1000*Basis!$B$3,2),ROUND(1000/F141*E141/1000*Basis!$B$2,2))) -> 60.68 | K141: 238.55 | L141: 7208.55 | M141: 7348.55 | N141: nein | O141: 139
A142: 1742E12 | B142: evoton MZ 80 GS HAZ 30,0 | C142: ja | D142: 4.63197 | E142: 710 | F142: 108 | G142: 8360 | H142: 140 | I142: =IF(C142="ja",ROUND(1000*1/1000*D142*Basis!$B$1,2),0) -> 177.87 | J142: =IF(C142="ja",ROUND(1000/F142*E142/1000*Basis!$B$4,2),IF(N142="ja",ROUND(1000/F142*E142/1000*Basis!$B$3,2),ROUND(1000/F142*E142/1000*Basis!$B$2,2))) -> 60.68 | K142: 238.55 | L142: 8598.55 | M142: 8738.55 | N142: nein | O142: 140
A143: 1740-12 | B143: evoton MZ 80 GS HAZ 36,5 | C143: ja | D143: 5.63556 | E143: 716 | F143: 96 | G143: 7800 | H143: 155 | I143: =IF(C143="ja",ROUND(1000*1/1000*D143*Basis!$B$1,2),0) -> 216.41 | J143: =IF(C143="ja",ROUND(1000/F143*E143/1000*Basis!$B$4,2),IF(N143="ja",ROUND(1000/F143*E143/1000*Basis!$B$3,2),ROUND(1000/F143*E143/1000*Basis!$B$2,2))) -> 68.84 | K143: 285.25 | L143: 8085.25 | M143: 8240.25 | N143: nein | O143: 141
A144: 1740E12 | B144: evoton MZ 80 GS HAZ 36,5 | C144: ja | D144: 5.63556 | E144: 716 | F144: 96 | G144: 9340 | H144: 155 | I144: =IF(C144="ja",ROUND(1000*1/1000*D144*Basis!$B$1,2),0) -> 216.41 | J144: =IF(C144="ja",ROUND(1000/F144*E144/1000*Basis!$B$4,2),IF(N144="ja",ROUND(1000/F144*E144/1000*Basis!$B$3,2),ROUND(1000/F144*E144/1000*Basis!$B$2,2))) -> 68.84 | K144: 285.25 | L144: 9625.25 | M144: 9780.25 | N144: nein | O144: 142
A145: 1740-16 | B145: evoton MZ 80 GS HAZ 36,5 | C145: ja | D145: 11.50208 | E145: 500 | F145: 48 | G145: 12050 | H145: 230 | I145: =IF(C145="ja",ROUND(1000*1/1000*D145*Basis!$B$1,2),0) -> 441.68 | J145: =IF(C145="ja",ROUND(1000/F145*E145/1000*Basis!$B$4,2),IF(N145="ja",ROUND(1000/F145*E145/1000*Basis!$B$3,2),ROUND(1000/F145*E145/1000*Basis!$B$2,2))) -> 96.15 | K145: 537.83 | L145: 12587.83 | M145: 12817.83 | N145: nein | O145: 143
A146: 1740E16 | B146: evoton MZ 80 GS HAZ 36,5 | C146: ja | D146: 11.50208 | E146: 500 | F146: 48 | G146: 14460 | H146: 230 | I146: =IF(C146="ja",ROUND(1000*1/1000*D146*Basis!$B$1,2),0) -> 441.68 | J146: =IF(C146="ja",ROUND(1000/F146*E146/1000*Basis!$B$4,2),IF(N146="ja",ROUND(1000/F146*E146/1000*Basis!$B$3,2),ROUND(1000/F146*E146/1000*Basis!$B$2,2))) -> 96.15 | K146: 537.83 | L146: 14997.83 | M146: 15227.83 | N146: nein | O146: 144
A147: 1740-22 | B147: evoton MZ 80 GS HAZ 36,5 | C147: ja | D147: 11.50208 | E147: 685 | F147: 48 | G147: 12050 | H147: 310 | I147: =IF(C147="ja",ROUND(1000*1/1000*D147*Basis!$B$1,2),0) -> 441.68 | J147: =IF(C147="ja",ROUND(1000/F147*E147/1000*Basis!$B$4,2),IF(N147="ja",ROUND(1000/F147*E147/1000*Basis!$B$3,2),ROUND(1000/F147*E147/1000*Basis!$B$2,2))) -> 131.72 | K147: 573.4 | L147: 12623.4 | M147: 12933.4 | N147: nein | O147: 145
A148: 1740E22 | B148: evoton MZ 80 GS HAZ 36,5 | C148: ja | D148: 11.50208 | E148: 685 | F148: 48 | G148: 14460 | H148: 310 | I148: =IF(C148="ja",ROUND(1000*1/1000*D148*Basis!$B$1,2),0) -> 441.68 | J148: =IF(C148="ja",ROUND(1000/F148*E148/1000*Basis!$B$4,2),IF(N148="ja",ROUND(1000/F148*E148/1000*Basis!$B$3,2),ROUND(1000/F148*E148/1000*Basis!$B$2,2))) -> 131.72 | K148: 573.4 | L148: 15033.4 | M148: 15343.4 | N148: nein | O148: 146
A149: 1748-12 | B149: evoton MZ 80 GS HAZ 42,5 | C149: ja | D149: 6.56195 | E149: 640 | F149: 72 | G149: 9070 | H149: 175 | I149: =IF(C149="ja",ROUND(1000*1/1000*D149*Basis!$B$1,2),0) -> 251.98 | J149: =IF(C149="ja",ROUND(1000/F149*E149/1000*Basis!$B$4,2),IF(N149="ja",ROUND(1000/F149*E149/1000*Basis!$B$3,2),ROUND(1000/F149*E149/1000*Basis!$B$2,2))) -> 82.04 | K149: 334.02 | L149: 9404.02 | M149: 9579.02 | N149: nein | O149: 147
A150: 1748E12 | B150: evoton MZ 80 GS HAZ 42,5 | C150: ja | D150: 6.56195 | E150: 640 | F150: 72 | G150: 10890 | H150: 175 | I150: =IF(C150="ja",ROUND(1000*1/1000*D150*Basis!$B$1,2),0) -> 251.98 | J150: =IF(C150="ja",ROUND(1000/F150*E150/1000*Basis!$B$4,2),IF(N150="ja",ROUND(1000/F150*E150/1000*Basis!$B$3,2),ROUND(1000/F150*E150/1000*Basis!$B$2,2))) -> 82.04 | K150: 334.02 | L150: 11224.02 | M150: 11399.02 | N150: nein | O150: 148
A151: 1748-16 | B151: evoton MZ 80 GS HAZ 42,5 | C151: ja | D151: 13.39284 | E151: 420 | F151: 36 | G151: 14010 | H151: 255 | I151: =IF(C151="ja",ROUND(1000*1/1000*D151*Basis!$B$1,2),0) -> 514.29 | J151: =IF(C151="ja",ROUND(1000/F151*E151/1000*Basis!$B$4,2),IF(N151="ja",ROUND(1000/F151*E151/1000*Basis!$B$3,2),ROUND(1000/F151*E151/1000*Basis!$B$2,2))) -> 107.68 | K151: 621.97 | L151: 14631.97 | M151: 14886.97 | N151: nein | O151: 149
A152: 1748E16 | B152: evoton MZ 80 GS HAZ 42,5 | C152: ja | D152: 13.39284 | E152: 420 | F152: 36 | G152: 16830 | H152: 255 | I152: =IF(C152="ja",ROUND(1000*1/1000*D152*Basis!$B$1,2),0) -> 514.29 | J152: =IF(C152="ja",ROUND(1000/F152*E152/1000*Basis!$B$4,2),IF(N152="ja",ROUND(1000/F152*E152/1000*Basis!$B$3,2),ROUND(1000/F152*E152/1000*Basis!$B$2,2))) -> 107.68 | K152: 621.97 | L152: 17451.97 | M152: 17706.97 | N152: nein | O152: 150
A153: 1748-22 | B153: evoton MZ 80 GS HAZ 42,5 | C153: ja | D153: 13.39284 | E153: 580 | F153: 36 | G153: 14010 | H153: 350 | I153: =IF(C153="ja",ROUND(1000*1/1000*D153*Basis!$B$1,2),0) -> 514.29 | J153: =IF(C153="ja",ROUND(1000/F153*E153/1000*Basis!$B$4,2),IF(N153="ja",ROUND(1000/F153*E153/1000*Basis!$B$3,2),ROUND(1000/F153*E153/1000*Basis!$B$2,2))) -> 148.71 | K153: 663 | L153: 14673 | M153: 15023 | N153: nein | O153: 151
A154: 1748E22 | B154: evoton MZ 80 GS HAZ 42,5 | C154: ja | D154: 13.39284 | E154: 580 | F154: 36 | G154: 16830 | H154: 350 | I154: =IF(C154="ja",ROUND(1000*1/1000*D154*Basis!$B$1,2),0) -> 514.29 | J154: =IF(C154="ja",ROUND(1000/F154*E154/1000*Basis!$B$4,2),IF(N154="ja",ROUND(1000/F154*E154/1000*Basis!$B$3,2),ROUND(1000/F154*E154/1000*Basis!$B$2,2))) -> 148.71 | K154: 663 | L154: 17493 | M154: 17843 | N154: nein | O154: 152
A155: 1710-12 | B155: evoton MZ 65 HAZ 36,5-12 | C155: ja | D155: 5.63556 | E155: 646 | F155: 96 | G155: 9290 | H155: 150 | I155: =IF(C155="ja",ROUND(1000*1/1000*D155*Basis!$B$1,2),0) -> 216.41 | J155: =IF(C155="ja",ROUND(1000/F155*E155/1000*Basis!$B$4,2),IF(N155="ja",ROUND(1000/F155*E155/1000*Basis!$B$3,2),ROUND(1000/F155*E155/1000*Basis!$B$2,2))) -> 62.11 | K155: 278.52 | L155: 9568.52 | M155: 9718.52 | N155: nein | O155: 153
A156: 1710E12 | B156: evoton MZ 65 HAZ 36,5-12 | C156: ja | D156: 5.63556 | E156: 646 | F156: 96 | G156: 11080 | H156: 150 | I156: =IF(C156="ja",ROUND(1000*1/1000*D156*Basis!$B$1,2),0) -> 216.41 | J156: =IF(C156="ja",ROUND(1000/F156*E156/1000*Basis!$B$4,2),IF(N156="ja",ROUND(1000/F156*E156/1000*Basis!$B$3,2),ROUND(1000/F156*E156/1000*Basis!$B$2,2))) -> 62.11 | K156: 278.52 | L156: 11358.52 | M156: 11508.52 | N156: nein | O156: 154
A157: 1710-16 | B157: evoton MZ 65 HAZ 36,5-16 | C157: ja | D157: 11.50208 | E157: 434 | F157: 48 | G157: 14375 | H157: 220 | I157: =IF(C157="ja",ROUND(1000*1/1000*D157*Basis!$B$1,2),0) -> 441.68 | J157: =IF(C157="ja",ROUND(1000/F157*E157/1000*Basis!$B$4,2),IF(N157="ja",ROUND(1000/F157*E157/1000*Basis!$B$3,2),ROUND(1000/F157*E157/1000*Basis!$B$2,2))) -> 83.45 | K157: 525.13 | L157: 14900.13 | M157: 15120.13 | N157: nein | O157: 155
A158: 1710E16 | B158: evoton MZ 65 HAZ 36,5-16 | C158: ja | D158: 11.50208 | E158: 434 | F158: 48 | G158: 17170 | H158: 220 | I158: =IF(C158="ja",ROUND(1000*1/1000*D158*Basis!$B$1,2),0) -> 441.68 | J158: =IF(C158="ja",ROUND(1000/F158*E158/1000*Basis!$B$4,2),IF(N158="ja",ROUND(1000/F158*E158/1000*Basis!$B$3,2),ROUND(1000/F158*E158/1000*Basis!$B$2,2))) -> 83.45 | K158: 525.13 | L158: 17695.13 | M158: 17915.13 | N158: nein | O158: 156
A159: 1710-22 | B159: evoton MZ 65 HAZ 36,5-22 | C159: ja | D159: 11.50208 | E159: 581 | F159: 48 | G159: 14375 | H159: 280 | I159: =IF(C159="ja",ROUND(1000*1/1000*D159*Basis!$B$1,2),0) -> 441.68 | J159: =IF(C159="ja",ROUND(1000/F159*E159/1000*Basis!$B$4,2),IF(N159="ja",ROUND(1000/F159*E159/1000*Basis!$B$3,2),ROUND(1000/F159*E159/1000*Basis!$B$2,2))) -> 111.72 | K159: 553.4 | L159: 14928.4 | M159: 15208.4 | N159: nein | O159: 157
A160: 1710E22 | B160: evoton MZ 65 HAZ 36,5-22 | C160: ja | D160: 11.50208 | E160: 581 | F160: 48 | G160: 17170 | H160: 280 | I160: =IF(C160="ja",ROUND(1000*1/1000*D160*Basis!$B$1,2),0) -> 441.68 | J160: =IF(C160="ja",ROUND(1000/F160*E160/1000*Basis!$B$4,2),IF(N160="ja",ROUND(1000/F160*E160/1000*Basis!$B$3,2),ROUND(1000/F160*E160/1000*Basis!$B$2,2))) -> 111.72 | K160: 553.4 | L160: 17723.4 | M160: 18003.4 | N160: nein | O160: 158
A161: 1718-12 | B161: evoton MZ 65 HAZ 42,5-12 | C161: ja | D161: 6.56195 | E161: 565 | F161: 72 | G161: 11090 | H161: 160 | I161: =IF(C161="ja",ROUND(1000*1/1000*D161*Basis!$B$1,2),0) -> 251.98 | J161: =IF(C161="ja",ROUND(1000/F161*E161/1000*Basis!$B$4,2),IF(N161="ja",ROUND(1000/F161*E161/1000*Basis!$B$3,2),ROUND(1000/F161*E161/1000*Basis!$B$2,2))) -> 72.43 | K161: 324.41 | L161: 11414.41 | M161: 11574.41 | N161: nein | O161: 159
A162: 1718E12 | B162: evoton MZ 65 HAZ 42,5-12 | C162: ja | D162: 6.56195 | E162: 565 | F162: 72 | G162: 13230 | H162: 160 | I162: =IF(C162="ja",ROUND(1000*1/1000*D162*Basis!$B$1,2),0) -> 251.98 | J162: =IF(C162="ja",ROUND(1000/F162*E162/1000*Basis!$B$4,2),IF(N162="ja",ROUND(1000/F162*E162/1000*Basis!$B$3,2),ROUND(1000/F162*E162/1000*Basis!$B$2,2))) -> 72.43 | K162: 324.41 | L162: 13554.41 | M162: 13714.41 | N162: nein | O162: 160
A163: 1718-16 | B163: evoton MZ 65 HAZ 42,5-16 | C163: ja | D163: 13.39284 | E163: 385 | F163: 36 | G163: 17170 | H163: 235 | I163: =IF(C163="ja",ROUND(1000*1/1000*D163*Basis!$B$1,2),0) -> 514.29 | J163: =IF(C163="ja",ROUND(1000/F163*E163/1000*Basis!$B$4,2),IF(N163="ja",ROUND(1000/F163*E163/1000*Basis!$B$3,2),ROUND(1000/F163*E163/1000*Basis!$B$2,2))) -> 98.71 | K163: 613 | L163: 17783 | M163: 18018 | N163: nein | O163: 161
A164: 1718E16 | B164: evoton MZ 65 HAZ 42,5-16 | C164: ja | D164: 13.39284 | E164: 385 | F164: 36 | G164: 20510 | H164: 235 | I164: =IF(C164="ja",ROUND(1000*1/1000*D164*Basis!$B$1,2),0) -> 514.29 | J164: =IF(C164="ja",ROUND(1000/F164*E164/1000*Basis!$B$4,2),IF(N164="ja",ROUND(1000/F164*E164/1000*Basis!$B$3,2),ROUND(1000/F164*E164/1000*Basis!$B$2,2))) -> 98.71 | K164: 613 | L164: 21123 | M164: 21358 | N164: nein | O164: 162
A165: 1718-22 | B165: evoton MZ 65 HAZ 42,5-22 | C165: ja | D165: 13.39284 | E165: 507 | F165: 36 | G165: 17170 | H165: 320 | I165: =IF(C165="ja",ROUND(1000*1/1000*D165*Basis!$B$1,2),0) -> 514.29 | J165: =IF(C165="ja",ROUND(1000/F165*E165/1000*Basis!$B$4,2),IF(N165="ja",ROUND(1000/F165*E165/1000*Basis!$B$3,2),ROUND(1000/F165*E165/1000*Basis!$B$2,2))) -> 129.99 | K165: 644.28 | L165: 17814.28 | M165: 18134.28 | N165: nein | O165: 163
A166: 1718E22 | B166: evoton MZ 65 HAZ 42,5-22 | C166: ja | D166: 13.39284 | E166: 507 | F166: 36 | G166: 20510 | H166: 320 | I166: =IF(C166="ja",ROUND(1000*1/1000*D166*Basis!$B$1,2),0) -> 514.29 | J166: =IF(C166="ja",ROUND(1000/F166*E166/1000*Basis!$B$4,2),IF(N166="ja",ROUND(1000/F166*E166/1000*Basis!$B$3,2),ROUND(1000/F166*E166/1000*Basis!$B$2,2))) -> 129.99 | K166: 644.28 | L166: 21154.28 | M166: 21474.28 | N166: nein | O166: 164
A167: 908 | B167: U-425 | C167: nein | D167: 12.38824 | E167: =13*36 -> 468 | F167: 36 | G167: 16620 | H167: 415 | I167: =IF(C167="ja",ROUND(1000*1/1000*D167*Basis!$B$1,2),0) -> 0 | J167: =IF(C167="ja",ROUND(1000/F167*E167/1000*Basis!$B$4,2),IF(N167="ja",ROUND(1000/F167*E167/1000*Basis!$B$3,2),ROUND(1000/F167*E167/1000*Basis!$B$2,2))) -> 152.62 | K167: 152.62 | L167: 16772.62 | M167: 17187.62 | N167: ja | O167: 165
A168: 900 | B168: U-365 | C168: nein | D168: 10.63931 | E168: =13*48 -> 624 | F168: 48 | G168: 12730 | H168: 355 | I168: =IF(C168="ja",ROUND(1000*1/1000*D168*Basis!$B$1,2),0) -> 0 | J168: =IF(C168="ja",ROUND(1000/F168*E168/1000*Basis!$B$4,2),IF(N168="ja",ROUND(1000/F168*E168/1000*Basis!$B$3,2),ROUND(1000/F168*E168/1000*Basis!$B$2,2))) -> 152.62 | K168: 152.62 | L168: 12882.62 | M168: 13237.62 | N168: ja | O168: 166
A169: 901 | B169: U-300 | C169: nein | D169: 8.74464 | E169: =10*54 -> 540 | F169: 54 | G169: 10900 | H169: 315 | I169: =IF(C169="ja",ROUND(1000*1/1000*D169*Basis!$B$1,2),0) -> 0 | J169: =IF(C169="ja",ROUND(1000/F169*E169/1000*Basis!$B$4,2),IF(N169="ja",ROUND(1000/F169*E169/1000*Basis!$B$3,2),ROUND(1000/F169*E169/1000*Basis!$B$2,2))) -> 117.4 | K169: 117.4 | L169: 11017.4 | M169: 11332.4 | N169: ja | O169: 167
A170: 902 | B170: U-240 | C170: nein | D170: 6.99571 | E170: =10*72 -> 720 | F170: 72 | G170: 8880 | H170: 305 | I170: =IF(C170="ja",ROUND(1000*1/1000*D170*Basis!$B$1,2),0) -> 0 | J170: =IF(C170="ja",ROUND(1000/F170*E170/1000*Basis!$B$4,2),IF(N170="ja",ROUND(1000/F170*E170/1000*Basis!$B$3,2),ROUND(1000/F170*E170/1000*Basis!$B$2,2))) -> 117.4 | K170: 117.4 | L170: 8997.4 | M170: 9302.4 | N170: ja | O170: 168
A171: 914 | B171: WU-425 | C171: nein | D171: 12.38824 | E171: =13*36 -> 468 | F171: 36 | G171: 20170 | H171: 445 | I171: =IF(C171="ja",ROUND(1000*1/1000*D171*Basis!$B$1,2),0) -> 0 | J171: =IF(C171="ja",ROUND(1000/F171*E171/1000*Basis!$B$4,2),IF(N171="ja",ROUND(1000/F171*E171/1000*Basis!$B$3,2),ROUND(1000/F171*E171/1000*Basis!$B$2,2))) -> 152.62 | K171: 152.62 | L171: 20322.62 | M171: 20767.62 | N171: ja | O171: 169
A172: 910 | B172: WU-365 | C172: nein | D172: 10.63931 | E172: =13*60 -> 780 | F172: 60 | G172: 15680 | H172: 365 | I172: =IF(C172="ja",ROUND(1000*1/1000*D172*Basis!$B$1,2),0) -> 0 | J172: =IF(C172="ja",ROUND(1000/F172*E172/1000*Basis!$B$4,2),IF(N172="ja",ROUND(1000/F172*E172/1000*Basis!$B$3,2),ROUND(1000/F172*E172/1000*Basis!$B$2,2))) -> 152.62 | K172: 152.62 | L172: 15832.62 | M172: 16197.62 | N172: ja | O172: 170
A173: 911 | B173: WU-300 | C173: nein | D173: 8.74464 | E173: =10*54 -> 540 | F173: 54 | G173: 13310 | H173: 340 | I173: =IF(C173="ja",ROUND(1000*1/1000*D173*Basis!$B$1,2),0) -> 0 | J173: =IF(C173="ja",ROUND(1000/F173*E173/1000*Basis!$B$4,2),IF(N173="ja",ROUND(1000/F173*E173/1000*Basis!$B$3,2),ROUND(1000/F173*E173/1000*Basis!$B$2,2))) -> 117.4 | K173: 117.4 | L173: 13427.4 | M173: 13767.4 | N173: ja | O173: 171
A174: 924 | B174: PU-425 | C174: nein | D174: 12.8528 | E174: =13*36 -> 468 | F174: 36 | G174: 17995 | H174: 455 | I174: =IF(C174="ja",ROUND(1000*1/1000*D174*Basis!$B$1,2),0) -> 0 | J174: =IF(C174="ja",ROUND(1000/F174*E174/1000*Basis!$B$4,2),IF(N174="ja",ROUND(1000/F174*E174/1000*Basis!$B$3,2),ROUND(1000/F174*E174/1000*Basis!$B$2,2))) -> 152.62 | K174: 152.62 | L174: 18147.62 | M174: 18602.62 | N174: ja | O174: 172
A175: 920 | B175: PU-365 | C175: nein | D175: 11.03829 | E175: =13*48 -> 624 | F175: 48 | G175: 13765 | H175: 375 | I175: =IF(C175="ja",ROUND(1000*1/1000*D175*Basis!$B$1,2),0) -> 0 | J175: =IF(C175="ja",ROUND(1000/F175*E175/1000*Basis!$B$4,2),IF(N175="ja",ROUND(1000/F175*E175/1000*Basis!$B$3,2),ROUND(1000/F175*E175/1000*Basis!$B$2,2))) -> 152.62 | K175: 152.62 | L175: 13917.62 | M175: 14292.62 | N175: ja | O175: 173
A176: 921 | B176: PU-300 | C176: nein | D176: 9.07257 | E176: =10*54 -> 540 | F176: 54 | G176: 12455 | H176: 345 | I176: =IF(C176="ja",ROUND(1000*1/1000*D176*Basis!$B$1,2),0) -> 0 | J176: =IF(C176="ja",ROUND(1000/F176*E176/1000*Basis!$B$4,2),IF(N176="ja",ROUND(1000/F176*E176/1000*Basis!$B$3,2),ROUND(1000/F176*E176/1000*Basis!$B$2,2))) -> 117.4 | K176: 117.4 | L176: 12572.4 | M176: 12917.4 | N176: ja | O176: 174
A177: 922 | B177: PU-240 | C177: nein | D177: 7.25805 | E177: =10*72 -> 720 | F177: 72 | G177: 9640 | H177: 325 | I177: =IF(C177="ja",ROUND(1000*1/1000*D177*Basis!$B$1,2),0) -> 0 | J177: =IF(C177="ja",ROUND(1000/F177*E177/1000*Basis!$B$4,2),IF(N177="ja",ROUND(1000/F177*E177/1000*Basis!$B$3,2),ROUND(1000/F177*E177/1000*Basis!$B$2,2))) -> 117.4 | K177: 117.4 | L177: 9757.4 | M177: 10082.4 | N177: ja | O177: 175
A178: 2909 | B178: U-490 | C178: nein | D178: 14.87804 | E178: =15*40 -> 600 | F178: 40 | G178: 21450 | H178: 475 | I178: =IF(C178="ja",ROUND(1000*1/1000*D178*Basis!$B$1,2),0) -> 0 | J178: =IF(C178="ja",ROUND(1000/F178*E178/1000*Basis!$B$4,2),IF(N178="ja",ROUND(1000/F178*E178/1000*Basis!$B$3,2),ROUND(1000/F178*E178/1000*Basis!$B$2,2))) -> 176.1 | K178: 176.1 | L178: 21626.1 | M178: 22101.1 | N178: ja | O178: 176
A179: 2908 | B179: U-425 | C179: nein | D179: 12.38824 | E179: =13*60 -> 780 | F179: 60 | G179: 16620 | H179: 415 | I179: =IF(C179="ja",ROUND(1000*1/1000*D179*Basis!$B$1,2),0) -> 0 | J179: =IF(C179="ja",ROUND(1000/F179*E179/1000*Basis!$B$4,2),IF(N179="ja",ROUND(1000/F179*E179/1000*Basis!$B$3,2),ROUND(1000/F179*E179/1000*Basis!$B$2,2))) -> 152.62 | K179: 152.62 | L179: 16772.62 | M179: 17187.62 | N179: ja | O179: 177
A180: 29900 | B180: U-365 | C180: nein | D180: 10.63931 | E180: =13*48 -> 624 | F180: 48 | G180: 12730 | H180: 355 | I180: =IF(C180="ja",ROUND(1000*1/1000*D180*Basis!$B$1,2),0) -> 0 | J180: =IF(C180="ja",ROUND(1000/F180*E180/1000*Basis!$B$4,2),IF(N180="ja",ROUND(1000/F180*E180/1000*Basis!$B$3,2),ROUND(1000/F180*E180/1000*Basis!$B$2,2))) -> 152.62 | K180: 152.62 | L180: 12882.62 | M180: 13237.62 | N180: ja | O180: 178
A181: 2901 | B181: U-300 | C181: nein | D181: 8.81813 | E181: =10*75 -> 750 | F181: 75 | G181: 10900 | H181: 315 | I181: =IF(C181="ja",ROUND(1000*1/1000*D181*Basis!$B$1,2),0) -> 0 | J181: =IF(C181="ja",ROUND(1000/F181*E181/1000*Basis!$B$4,2),IF(N181="ja",ROUND(1000/F181*E181/1000*Basis!$B$3,2),ROUND(1000/F181*E181/1000*Basis!$B$2,2))) -> 117.4 | K181: 117.4 | L181: 11017.4 | M181: 11332.4 | N181: ja | O181: 179
A182: 29902 | B182: U-240 | C182: nein | D182: 6.99571 | E182: =10*72 -> 720 | F182: 72 | G182: 8880 | H182: 305 | I182: =IF(C182="ja",ROUND(1000*1/1000*D182*Basis!$B$1,2),0) -> 0 | J182: =IF(C182="ja",ROUND(1000/F182*E182/1000*Basis!$B$4,2),IF(N182="ja",ROUND(1000/F182*E182/1000*Basis!$B$3,2),ROUND(1000/F182*E182/1000*Basis!$B$2,2))) -> 117.4 | K182: 117.4 | L182: 8997.4 | M182: 9302.4 | N182: ja | O182: 180
A183: 2903 | B183: U-175 | C183: nein | D183: 5.10104 | E183: =7*135 -> 945 | F183: 135 | G183: 8040 | H183: 245 | I183: =IF(C183="ja",ROUND(1000*1/1000*D183*Basis!$B$1,2),0) -> 0 | J183: =IF(C183="ja",ROUND(1000/F183*E183/1000*Basis!$B$4,2),IF(N183="ja",ROUND(1000/F183*E183/1000*Basis!$B$3,2),ROUND(1000/F183*E183/1000*Basis!$B$2,2))) -> 82.18 | K183: 82.18 | L183: 8122.18 | M183: 8367.18 | N183: ja | O183: 181
A184: 1720-12 | B184: evoton MZ 70 HAZ 36,5-12 | C184: ja | D184: 5.63556 | E184: 625 | F184: 96 | I184: =IF(C184="ja",ROUND(1000*1/1000*D184*Basis!$B$1,2),0) -> 216.41 | J184: =IF(C184="ja",ROUND(1000/F184*E184/1000*Basis!$B$4,2),IF(N184="ja",ROUND(1000/F184*E184/1000*Basis!$B$3,2),ROUND(1000/F184*E184/1000*Basis!$B$2,2))) -> 60.09 | K184: 276.5 | L184: 276.5 | M184: 276.5 | N184: nein
A185: 1728-12 | B185: evoton MZ 70 HAZ 42,5-12 | C185: ja | D185: 6.56195 | E185: 550 | F185: 72 | I185: =IF(C185="ja",ROUND(1000*1/1000*D185*Basis!$B$1,2),0) -> 251.98 | J185: =IF(C185="ja",ROUND(1000/F185*E185/1000*Basis!$B$4,2),IF(N185="ja",ROUND(1000/F185*E185/1000*Basis!$B$3,2),ROUND(1000/F185*E185/1000*Basis!$B$2,2))) -> 70.51 | K185: 322.49 | L185: 322.49 | M185: 322.49 | N185: nein
A186: 1738-12 | B186: evoton MZ 75 HAZ 42,5-12 | C186: ja | D186: 6.56195 | E186: 473 | F186: 72 | I186: =IF(C186="ja",ROUND(1000*1/1000*D186*Basis!$B$1,2),0) -> 251.98 | J186: =IF(C186="ja",ROUND(1000/F186*E186/1000*Basis!$B$4,2),IF(N186="ja",ROUND(1000/F186*E186/1000*Basis!$B$3,2),ROUND(1000/F186*E186/1000*Basis!$B$2,2))) -> 60.64 | K186: 312.62 | L186: 312.62 | M186: 312.62 | N186: nein
A187: 1738-13 | B187: evoton MZ 75 HAZ 42,5-13 | C187: ja | D187: 13.39284 | E187: =ROUNDDOWN(36*9.739+16,0) -> 366 | F187: 36 | I187: =IF(C187="ja",ROUND(1000*1/1000*D187*Basis!$B$1,2),0) -> 514.29 | J187: =IF(C187="ja",ROUND(1000/F187*E187/1000*Basis!$B$4,2),IF(N187="ja",ROUND(1000/F187*E187/1000*Basis!$B$3,2),ROUND(1000/F187*E187/1000*Basis!$B$2,2))) -> 93.84 | K187: 608.13 | L187: 608.13 | M187: 608.13 | N187: nein
A188: 1738-15 | B188: evoton MZ 75 HAZ 42,5-13 | C188: ja | D188: 13.39284 | E188: =ROUNDDOWN(36*11.245+16,0) -> 420 | F188: 36 | I188: =IF(C188="ja",ROUND(1000*1/1000*D188*Basis!$B$1,2),0) -> 514.29 | J188: =IF(C188="ja",ROUND(1000/F188*E188/1000*Basis!$B$4,2),IF(N188="ja",ROUND(1000/F188*E188/1000*Basis!$B$3,2),ROUND(1000/F188*E188/1000*Basis!$B$2,2))) -> 107.68 | K188: 621.97 | L188: 621.97 | M188: 621.97 | N188: nein
A189: 1738-21 | B189: evoton MZ 75 HAZ 42,5-21 | C189: ja | D189: 13.39284 | E189: =ROUNDDOWN(36*14.843+16,0) -> 550 | F189: 36 | I189: =IF(C189="ja",ROUND(1000*1/1000*D189*Basis!$B$1,2),0) -> 514.29 | J189: =IF(C189="ja",ROUND(1000/F189*E189/1000*Basis!$B$4,2),IF(N189="ja",ROUND(1000/F189*E189/1000*Basis!$B$3,2),ROUND(1000/F189*E189/1000*Basis!$B$2,2))) -> 141.01 | K189: 655.3 | L189: 655.3 | M189: 655.3 | N189: nein
A190: 1739-12 | B190: evoton TV 7 HAZ 49,0-12 | C190: ja | D190: 7.56554 | E190: 556 | F190: 72 | I190: =IF(C190="ja",ROUND(1000*1/1000*D190*Basis!$B$1,2),0) -> 290.52 | J190: =IF(C190="ja",ROUND(1000/F190*E190/1000*Basis!$B$4,2),IF(N190="ja",ROUND(1000/F190*E190/1000*Basis!$B$3,2),ROUND(1000/F190*E190/1000*Basis!$B$2,2))) -> 71.28 | K190: 361.8 | L190: 361.8 | M190: 361.8 | N190: nein
A191: 1740-8 | B191: evoton MZ 80 HAZ 36,5-8 | C191: ja | D191: 3.78783 | E191: 496 | F191: 96 | I191: =IF(C191="ja",ROUND(1000*1/1000*D191*Basis!$B$1,2),0) -> 145.45 | J191: =IF(C191="ja",ROUND(1000/F191*E191/1000*Basis!$B$4,2),IF(N191="ja",ROUND(1000/F191*E191/1000*Basis!$B$3,2),ROUND(1000/F191*E191/1000*Basis!$B$2,2))) -> 47.69 | K191: =I191+J191 -> 193.14 | L191: =G191+K191 -> 193.14 | M191: =G191+H191+K191 -> 193.14 | N191: nein
A192: 1742-16 | B192: evoton MZ 80 GS HAZ 30,0 | C192: ja | D192: 9.45377 | E192: 1410 | F192: 108 | I192: =IF(C192="ja",ROUND(1000*1/1000*D192*Basis!$B$1,2),0) -> 363.02 | J192: =IF(C192="ja",ROUND(1000/F192*E192/1000*Basis!$B$4,2),IF(N192="ja",ROUND(1000/F192*E192/1000*Basis!$B$3,2),ROUND(1000/F192*E192/1000*Basis!$B$2,2))) -> 120.5 | K192: 483.52 | L192: 483.52 | M192: 483.52 | N192: nein
A193: 1749-12 | B193: evoton MZ 80 HAZ 49,0-12 | C193: ja | D193: 7.56554 | E193: 772 | F193: 72 | I193: =IF(C193="ja",ROUND(1000*1/1000*D193*Basis!$B$1,2),0) -> 290.52 | J193: =IF(C193="ja",ROUND(1000/F193*E193/1000*Basis!$B$4,2),IF(N193="ja",ROUND(1000/F193*E193/1000*Basis!$B$3,2),ROUND(1000/F193*E193/1000*Basis!$B$2,2))) -> 98.97 | K193: 389.49 | L193: 389.49 | M193: 389.49 | N193: nein
A194: 1749E12 | B194: evoton MZ 80 HAZ 49,0-12 | C194: ja | D194: 7.56554 | E194: 772 | F194: 72 | I194: =IF(C194="ja",ROUND(1000*1/1000*D194*Basis!$B$1,2),0) -> 290.52 | J194: =IF(C194="ja",ROUND(1000/F194*E194/1000*Basis!$B$4,2),IF(N194="ja",ROUND(1000/F194*E194/1000*Basis!$B$3,2),ROUND(1000/F194*E194/1000*Basis!$B$2,2))) -> 98.97 | K194: 389.49 | L194: 389.49 | M194: 389.49 | N194: nein
A195: 1770-12 | B195: evoton MZ 90 HAZ 36,5-12 | C195: ja | D195: 5.63556 | E195: 786 | F195: 96 | I195: =IF(C195="ja",ROUND(1000*1/1000*D195*Basis!$B$1,2),0) -> 216.41 | J195: =IF(C195="ja",ROUND(1000/F195*E195/1000*Basis!$B$4,2),IF(N195="ja",ROUND(1000/F195*E195/1000*Basis!$B$3,2),ROUND(1000/F195*E195/1000*Basis!$B$2,2))) -> 75.57 | K195: 291.98 | L195: 291.98 | M195: 291.98 | N195: nein
A196: 1778-10 | B196: evoton MZ 90 HAZ 42,5-10 | C196: ja | D196: 6.56195 | E196: 580 | F196: 72 | I196: =IF(C196="ja",ROUND(1000*1/1000*D196*Basis!$B$1,2),0) -> 251.98 | J196: =IF(C196="ja",ROUND(1000/F196*E196/1000*Basis!$B$4,2),IF(N196="ja",ROUND(1000/F196*E196/1000*Basis!$B$3,2),ROUND(1000/F196*E196/1000*Basis!$B$2,2))) -> 74.35 | K196: 326.33 | L196: 326.33 | M196: 326.33 | N196: nein
A197: 1778-12 | B197: evoton MZ 90 HAZ 42,5-12 | C197: ja | D197: 6.56195 | E197: 691 | F197: 72 | I197: =IF(C197="ja",ROUND(1000*1/1000*D197*Basis!$B$1,2),0) -> 251.98 | J197: =IF(C197="ja",ROUND(1000/F197*E197/1000*Basis!$B$4,2),IF(N197="ja",ROUND(1000/F197*E197/1000*Basis!$B$3,2),ROUND(1000/F197*E197/1000*Basis!$B$2,2))) -> 88.58 | K197: 340.56 | L197: 340.56 | M197: 340.56 | N197: nein
A198: 1778-16 | B198: evoton MZ 90 HAZ 42,5-16 | C198: ja | D198: 13.39284 | E198: 418 | F198: 36 | I198: =IF(C198="ja",ROUND(1000*1/1000*D198*Basis!$B$1,2),0) -> 514.29 | J198: =IF(C198="ja",ROUND(1000/F198*E198/1000*Basis!$B$4,2),IF(N198="ja",ROUND(1000/F198*E198/1000*Basis!$B$3,2),ROUND(1000/F198*E198/1000*Basis!$B$2,2))) -> 107.17 | K198: 621.46 | L198: 621.46 | M198: 621.46 | N198: nein
A199: 1870 | B199: ecoton-Plan 6-0,65-12,0 DF | C199: nein | D199: 11.50208 | E199: 702 | F199: 48 | I199: =IF(C199="ja",ROUND(1000*1/1000*D199*Basis!$B$1,2),0) -> 0 | J199: =IF(C199="ja",ROUND(1000/F199*E199/1000*Basis!$B$4,2),IF(N199="ja",ROUND(1000/F199*E199/1000*Basis!$B$3,2),ROUND(1000/F199*E199/1000*Basis!$B$2,2))) -> 220.84 | K199: 220.84 | L199: 220.84 | M199: 220.84 | N199: nein
A200: 1878 | B200: ecoton-Plan 6-0,65-14,0 DF | C200: nein | D200: 13.39284 | E200: 635 | F200: 36 | I200: =IF(C200="ja",ROUND(1000*1/1000*D200*Basis!$B$1,2),0) -> 0 | J200: =IF(C200="ja",ROUND(1000/F200*E200/1000*Basis!$B$4,2),IF(N200="ja",ROUND(1000/F200*E200/1000*Basis!$B$3,2),ROUND(1000/F200*E200/1000*Basis!$B$2,2))) -> 266.35 | K200: 266.35 | L200: 266.35 | M200: 266.35 | N200: nein
... 63 more rows

Sheet Liste (hidden)
A1: Gefüllt
A2: ja
A3: nein

Sheet Gewichte (hidden)
A1: Artikelnr. | B1: Kurztext | C1: ME | D1: Auslaufteil | E1: Gewicht
A2: 1 | B2: Ziegel-Einhängedecken mit Ziegeltr. 21+0 | C2: qm | D2: aktiv | E2: 0
A3: 2 | B3: Ziegel-Einhängedecken mit Ziegelträger 18+3 | C3: qm | D3: aktiv | E3: 0
A4: 3 | B4: Zusatzträger | C4: Stk | D4: aktiv | E4: 0
A5: 5 | B5: Deckennegativziegel | C5: Stk | D5: aktiv | E5: 8.7
A6: 6 | B6: Deckenziegel 18 | C6: Stk | D6: aktiv | E6: 16
A7: 7 | B7: Deckenziegel 21 | C7: Stk | D7: aktiv | E7: 18
A8: 8 | B8: Ziegel-Einhängedecken mit Ziegelträger 18+7 | C8: qm | D8: aktiv | E8: 0
A9: 12 | B9: Ziegel-Einhängedecken mit Ziegelträger 18+6 | C9: qm | D9: aktiv | E9: 0
A10: 14 | B10: Ziegel-Einhängedecken mit Ziegelträger 16+6 | C10: qm | D10: aktiv | E10: 0
A11: 27 | B11: Ziegel-Einhängedecken mit Ziegelträger 18+0 | C11: qm | D11: aktiv | E11: 0
A12: 35 | B12: Ziegel-Einhängedecken mit Ziegeltr. 21+4 | C12: Stk | D12: aktiv | E12: 0
A13: 36 | B13: Ziegel-Einhängedecken mit Ziegeltr. 25+0 | C13: qm | D13: aktiv | E13: 0
A14: 37 | B14: Deckenziegel 25 | C14: Stk | D14: aktiv | E14: 16
A15: 38 | B15: Ziegel-Einhängedecken mit Ziegeltr. 25+7 | C15: qm | D15: aktiv | E15: 0
A16: 40 | B16: Schubzulage DH-Träger 100 cm | C16: qm | D16: aktiv | E16: 0
A17: 41 | B17: Einhängeschalen für Querrippe 48 cm | C17: qm | D17: aktiv | E17: 0
A18: 42 | B18: Integriertes Abhängesystem | C18: qm | D18: aktiv | E18: 0
A19: 100 | B19: HLZ Dünnformat | C19: Stk | D19: aktiv | E19: 1.2
A20: 105 | B20: HLZ NF | C20: Stk | D20: aktiv | E20: 1.5
A21: 106 | B21: HLZ NF Rd. 1,2 | C21: Stk | D21: aktiv | E21: 1.999
A22: 110 | B22: HLZ HF | C22: Stk | D22: aktiv | E22: 2.4
A23: 112 | B23: HLZ HF Rd. 1,2 | C23: Stk | D23: aktiv | E23: 3.181
A24: 114 | B24: HLZ 17,5 NF Rd. 1,0 | C24: Stk | D24: aktiv | E24: 2.773
A25: 116 | B25: HLZ 17,5 Babybl. Rd. 1,2 | C25: Stk | D25: aktiv | E25: 4.841
A26: 125 | B26: HLZ 30,0 Babybl. Rd. 1,0 | C26: Stk | D26: aktiv | E26: 7.566
A27: 130 | B27: HLZ 24,0 Babybl. Rd. 0,8 | C27: Stk | D27: aktiv | E27: 7.127
A28: 132 | B28: HLZ 24,0 Babybl. Rd. 1,2 | C28: Stk | D28: aktiv | E28: 10.097
A29: 1710 | B29: evoton MZ 65 36,5 | C29: Stk | D29: aktiv | E29: 12
A30: 1710-12 | B30: evoton MZ 65 HAZ 36,5-12 | C30: Stk | D30: aktiv | E30: 6.344
A31: 1710-16 | B31: evoton MZ 65 HAZ 36,5-16 | C31: Stk | D31: aktiv | E31: 6.344
A32: 1710-22 | B32: evoton MZ 65 HAZ 36,5-22 | C32: Stk | D32: aktiv | E32: 6.344
A33: 1710000000000000 | B33: evoton MZ 65 HAZ 36,5-12 | C33: Stk | D33: aktiv | E33: 6.574
A34: 1.71e+19 | B34: evoton MZ 65 HAZ 36,5-16 | C34: Stk | D34: aktiv | E34: 6.574
A35: 1.71e+25 | B35: evoton MZ 65 HAZ 36,5-22 | C35: Stk | D35: aktiv | E35: 6.574
A36: 1714 | B36: evoton Anf. 42,5 | C36: Stk | D36: aktiv | E36: 10.6
A37: 1715 | B37: evoton Anf. 36,5 | C37: Stk | D37: aktiv | E37: 9.3
A38: 1718 | B38: evoton MZ 65 42,5 | C38: Stk | D38: aktiv | E38: 14.376
A39: 1718-12 | B39: evoton MZ 65 HAZ 42,5-12 | C39: Stk | D39: aktiv | E39: 6.344
A40: 1718-16 | B40: evoton MZ 65 HAZ 42,5-16 | C40: Stk | D40: aktiv | E40: 6.344
A41: 1718-22 | B41: evoton MZ 65 HAZ 42,5-22 | C41: Stk | D41: aktiv | E41: 6.344
A42: 1718000000000000 | B42: evoton MZ 65 HAZ 42,5-12 | C42: Stk | D42: aktiv | E42: 6.574
A43: 1.718e+19 | B43: evoton MZ 65 HAZ 42,5-16 | C43: Stk | D43: aktiv | E43: 6.574
A44: 1.718e+25 | B44: evoton MZ 65 HAZ 42,5-22 | C44: Stk | D44: aktiv | E44: 6.574
A45: 1720 | B45: evoton MZ 70 36,5 | C45: Stk | D45: aktiv | E45: 12
A46: 1720-12 | B46: evoton MZ 70 HAZ 36,5-12 | C46: Stk | D46: aktiv | E46: 6.344
A47: 1720-16 | B47: evoton MZ 70 HAZ 36,5-16 | C47: Stk | D47: aktiv | E47: 8.542
A48: 1720-20 | B48: evoton MZ 70 HAZ 36,5-20 | C48: Stk | D48: aktiv | E48: 6.344
A49: 1720-22 | B49: evoton MZ 70 HAZ 36,5-22 | C49: Stk | D49: aktiv | E49: 11.667
A50: 1720000000000000 | B50: evoton MZ 70 HAZ 36,5-12 | C50: Stk | D50: aktiv | E50: 6.574
A51: 1.72e+19 | B51: evoton MZ 70 HAZ 36,5-16 | C51: Stk | D51: aktiv | E51: 6.574
A52: 1.72e+25 | B52: evoton MZ 70 HAZ 36,5-22 | C52: Stk | D52: aktiv | E52: 6.574
A53: 1728 | B53: evoton MZ 70 42,5 | C53: Stk | D53: aktiv | E53: 14.376
A54: 1728-12 | B54: evoton MZ 70 HAZ 42,5-12 | C54: Stk | D54: aktiv | E54: 7.417
A55: 1728-16 | B55: evoton MZ 70 HAZ 42,5-16 | C55: Stk | D55: aktiv | E55: 15.556
A56: 1728-22 | B56: evoton MZ 70 HAZ 42,5-22 | C56: Stk | D56: aktiv | E56: 13.75
A57: 1728000000000000 | B57: evoton MZ 70 HAZ 42,5-12 | C57: Stk | D57: aktiv | E57: 7.417
A58: 1.728e+19 | B58: evoton MZ 70 HAZ 42,5-16 | C58: Stk | D58: aktiv | E58: 15.556
A59: 1.728e+25 | B59: evoton MZ 70 HAZ 42,5-22 | C59: Stk | D59: aktiv | E59: 13.75
A60: 1729 | B60: evoton MZ 70 49,0 | C60: Stk | D60: aktiv | E60: 14.376
A61: 1730 | B61: evoton MZ 75 GS 36,5 | C61: Stk | D61: aktiv | E61: 14.9
A62: 1738 | B62: evoton MZ 75 G 42,5 | C62: Stk | D62: aktiv | E62: 17.6
A63: 1739 | B63: evoton MZ 75 G 49,0 | C63: Stk | D63: aktiv | E63: 15.068
A64: 1739-12 | B64: evoton TV 7 HAZ 49,0-12 | C64: Stk | D64: aktiv | E64: 7.5
A65: 1740 | B65: evoton MZ 80 GS 36,5 | C65: Stk | D65: aktiv | E65: 14.9
A66: 1740-12 | B66: evoton MZ 80 HAZ 36,5-12 | C66: Stk | D66: aktiv | E66: 8.021
A67: 1740-16 | B67: evoton MZ 80 HAZ 36,5-16 | C67: Stk | D67: aktiv | E67: 10.625
A68: 1740-17 | B68: evoton MZ 80 HAZ 36,5-17 | C68: Stk | D68: aktiv | E68: 11.76
A69: 1740-20 | B69: evoton MZ 80 G HAZ 36,5 | C69: Stk | D69: aktiv | E69: 11.91
A70: 1740-21 | B70: evoton MZ 80 G HAZ 36,5 | C70: Stk | D70: aktiv | E70: 12.568
A71: 1740-22 | B71: evoton MZ 80 HAZ 36,5-22 | C71: Stk | D71: aktiv | E71: 14.479
A72: 1740000000000000 | B72: evoton MZ 80 HAZ 36,5-12 | C72: Stk | D72: aktiv | E72: 8.021
A73: 1.74e+19 | B73: evoton MZ 80 HAZ 36,5-16 | C73: Stk | D73: aktiv | E73: 10.625
A74: 1.74e+25 | B74: evoton MZ 80 HAZ 36,5-22 | C74: Stk | D74: aktiv | E74: 14.479
A75: 1741 | B75: evoton MZ Anf. 30,0 | C75: Stk | D75: aktiv | E75: 7
A76: 1742 | B76: evoton MZ 80 GS 30,0 | C76: Stk | D76: aktiv | E76: 12.916
A77: 1742-12 | B77: evoton MZ 80 HAZ 30,0-12 | C77: Stk | D77: aktiv | E77: 6.574
A78: 1742-16 | B78: evoton MZ 80 GS HAZ 30,0 | C78: Stk | D78: aktiv | E78: 12.916
A79: 1742-21 | B79: evoton MZ 80 G 30,0 HAZ | C79: Stk | D79: aktiv | E79: 11.42
A80: 1742000000000000 | B80: evoton MZ 80 HAZ 30,0-12 | C80: Stk | D80: aktiv | E80: 6.574
A81: 1744 | B81: evoton MZ Anf. 42,5 | C81: Stk | D81: aktiv | E81: 11
A82: 1745 | B82: evoton MZ Anf. 36,5 | C82: Stk | D82: aktiv | E82: 9.2
A83: 1747 | B83: evoton MZ Eck 30,0 | C83: Stk | D83: aktiv | E83: 10.6
A84: 1748 | B84: evoton MZ 80 GS 42,5 | C84: Stk | D84: aktiv | E84: 17.6
A85: 1748-12 | B85: evoton MZ 80 HAZ 42,5-12 | C85: Stk | D85: aktiv | E85: 9.375
A86: 1748-16 | B86: evoton MZ 80 HAZ 42,5-16 | C86: Stk | D86: aktiv | E86: 12.5
A87: 1748-22 | B87: evoton MZ 80 HAZ 42,5-22 | C87: Stk | D87: aktiv | E87: 17.222
A88: 1748000000000000 | B88: evoton MZ 80 HAZ 42,5-12 | C88: Stk | D88: aktiv | E88: 6.574
A89: 1.748e+19 | B89: evoton MZ 80 HAZ 42,5-16 | C89: Stk | D89: aktiv | E89: 6.574
A90: 1.748e+25 | B90: evoton MZ 80 HAZ 42,5-22 | C90: Stk | D90: aktiv | E90: 6.574
A91: 1749 | B91: evoton MZ 80 GS 49,0 | C91: Stk | D91: aktiv | E91: 21
A92: 1749-12 | B92: evoton MZ 80 HAZ 49,0-12 | C92: Stk | D92: aktiv | E92: 10.5
A93: 1749CZ | B93: evoton MZ 80 G 49,0 | C93: Stk | D93: aktiv | E93: 21.528
A94: 1749000000000000 | B94: evoton MZ 80 HAZ 49,0-12 | C94: Stk | D94: aktiv | E94: 10.5
A95: 1752 | B95: evoton MZ 90 G 30,0 | C95: Stk | D95: aktiv | E95: 12.916
A96: 1758 | B96: evoton MZ 90 G 42,5 | C96: Stk | D96: aktiv | E96: 18.3
A97: 1759 | B97: evoton MZ 90 G 49,0 | C97: Stk | D97: aktiv | E97: 21
A98: 1770 | B98: evoton MZ 90 GMS 36,5 | C98: Stk | D98: aktiv | E98: 15.6
A99: 1770-12 | B99: evoton MZ 90 HAZ 36,5-12 | C99: Stk | D99: aktiv | E99: 8.021
A100: 1770-20 | B100: evoton MZ 90 HAZ 36,5-20 | C100: Stk | D100: aktiv | E100: 8.021
A101: 1770-22 | B101: evoton MZ 90 GMS HAZ 36,5 | C101: Stk | D101: aktiv | E101: 14.479
A102: 1770CZ | B102: evoton MZ 90 GMS 36,5 | C102: Stk | D102: aktiv | E102: 16.042
A103: 1770000000000000 | B103: evoton MZ 90 HAZ 36,5-12 | C103: Stk | D103: aktiv | E103: 8.021
A104: 1778 | B104: evoton MZ 90 GMS 42,5 | C104: Stk | D104: aktiv | E104: 17.5
A105: 1778-12 | B105: evoton MZ 90 HAZ 42,5-12 | C105: Stk | D105: aktiv | E105: 9.375
A106: 1778-15 | B106: evoton MZ 90 HAZ 42,5-15 | C106: Stk | D106: aktiv | E106: 9.375
A107: 1778-9 | B107: evoton MZ 90 HAZ 42,5-9 | C107: Stk | D107: aktiv | E107: 6.325
A108: 1790-12 | B108: evoton TV 9 Baby 36,5 | C108: Stk | D108: aktiv | E108: 7.3
A109: 1791 | B109: evoton TV 9 Anf. 30,0 | C109: Stk | D109: aktiv | E109: 8.5
A110: 1792-12 | B110: evoton TV 9 30,0 | C110: Stk | D110: aktiv | E110: 6.574
A111: 1798 | B111: evoton TV 9 42,5 | C111: Stk | D111: aktiv | E111: 16.5
A112: 1798-12 | B112: evoton TV9 42,5 HAZ | C112: Stk | D112: aktiv | E112: 9.375
A113: 1831 | B113: TH-Plan Eck 36,5 | C113: Stk | D113: aktiv | E113: 14.2
A114: 1833-12 | B114: TH-Plan Keller HAZ12 36,5 | C114: Stk | D114: aktiv | E114: 7.4
A115: 1834 | B115: TH-Plan Anf. 42,5 | C115: Stk | D115: aktiv | E115: 9.215
A116: 1835 | B116: TH-Plan Anf. 36,5 | C116: Stk | D116: aktiv | E116: 7.21
A117: 1837 | B117: ecoton-Pl Anf. 30,0 | C117: Stk | D117: aktiv | E117: 8.4
A118: 1840 | B118: TH-Plan 0,11 36,5 6/0,65 | C118: Stk | D118: aktiv | E118: 14.625
A119: 1842 | B119: Thermo Plan 12 Sism | C119: Stk | D119: aktiv | E119: 13.5
A120: 1843 | B120: TH-Plan Keller 0,11 36,5 | C120: Stk | D120: aktiv | E120: 14.625
A121: 1848 | B121: TH-Plan 0,11 42,5 6/0,65 | C121: Stk | D121: aktiv | E121: 17.638
A122: 1849 | B122: TH-Plan 0,11 49,0 6/0,65 | C122: Stk | D122: aktiv | E122: 20.055
A123: 1869 | B123: TH-Plan 0,12 49,0 6/0,65 | C123: Stk | D123: aktiv | E123: 19.6
A124: 1870 | B124: TH-Plan 0,12 36,5 6/0,65 | C124: Stk | D124: aktiv | E124: 14.625
A125: 1870-12 | B125: TH-Plan 0,12 36,5 6/0,65 | C125: Stk | D125: aktiv | E125: 14.625
A126: 1874 | B126: TH-Plan 0,12 24,0 6/0,65 | C126: Stk | D126: aktiv | E126: 12.129
A127: 1878 | B127: TH-Plan 0,12 42,5 6/0,65 | C127: Stk | D127: aktiv | E127: 17.638
A128: 1879 | B128: TH-Plan 0,12 49,0 6/0,65 | C128: Stk | D128: aktiv | E128: 20.055
A129: 1892 | B129: MKT-Mörtelrolle 36,5 | C129: Stk | D129: aktiv | E129: 0
A130: 1892-6 | B130: MKT-Mörtelrolle 17,5 - 49,0 | C130: Stk | D130: aktiv | E130: 0
A131: 1893 | B131: MKT-Mörtelrolle 17,5 | C131: Stk | D131: aktiv | E131: 0
A132: 1894 | B132: MKT-Mörtelrolle 42,5 | C132: Stk | D132: aktiv | E132: 0
A133: 1895 | B133: MKT-Mörtelrolle 30,0 | C133: Stk | D133: aktiv | E133: 0
A134: 1896 | B134: MKT-Mörtelrolle 49,0 | C134: Stk | D134: aktiv | E134: 0
A135: 1897 | B135: MKT-Mörtelrolle 24,0 | C135: Stk | D135: aktiv | E135: 0
A136: 1898 | B136: MKT-Set Anlege-Fix in der Alukiste | C136: Stk | D136: aktiv | E136: 0
A137: 1900 | B137: maxit mur 900D 15kg/Sa. | C137: Stk | D137: aktiv | E137: 15
A138: 1900CZ | B138: maxit mur 900D 15kg/Sa. | C138: Stk | D138: aktiv | E138: 15
A139: 1900Z | B139: maxit mur 900 D 15kg/Sack zusätzlich | C139: Stk | D139: aktiv | E139: 15
A140: 1901 | B140: maxit mur 900D M10, lose Ware | C140: kg | D140: aktiv | E140: 0
A141: 1902 | B141: Maxit Big-Bag weiß mit Inliner (fix.) (Anfuhr) | C141: Stk | D141: aktiv | E141: 0
A142: 1930 | B142: ecoton PL 9 36,5 6/0,65 | C142: Stk | D142: aktiv | E142: 14.7
A143: 1932 | B143: ecoton PL 9 30,0 6/0,65 | C143: Stk | D143: aktiv | E143: 11.901
A144: 1932-12 | B144: ecoton-Pl 9 HAZ 30,0 ged. | C144: Stk | D144: aktiv | E144: 6.019
A145: 1932000000000000 | B145: ecoton-Pl 9 HAZ 30,0 ged. | C145: Stk | D145: aktiv | E145: 6.019
A146: 1938 | B146: ecoton PL 9 42,5 6/0,65 | C146: Stk | D146: aktiv | E146: 16.86
A147: 1938-22 | B147: ecoton PL 9 HAZ 42,5 | C147: Stk | D147: aktiv | E147: 14.583
A148: 1939 | B148: ecoton PL 9 49,0 6/0,65 | C148: Stk | D148: aktiv | E148: 18.7
A149: 1940 | B149: ecoton PL 9 36,5 8/0,65 | C149: Stk | D149: aktiv | E149: 15.04
A150: 1940-14 | B150: ecoton PL 9 HAZ 36,5 | C150: Stk | D150: aktiv | E150: 6.906
A151: 1948 | B151: ecoton PL 9 42,5 8/0,65 | C151: Stk | D151: aktiv | E151: 15.04
A152: 1960 | B152: ecoton PL 10 36,5 6/0,65 | C152: Stk | D152: aktiv | E152: 14.5
A153: 1970 | B153: ecoton PL 7 36,5 4/0,60 | C153: Stk | D153: aktiv | E153: 13.02
A154: 1970-12 | B154: ecoton PL 7 HAZ 36,5 | C154: Stk | D154: aktiv | E154: 6.906
A155: 19706 | B155: ecoton PL 7 36,5 6/0,60 | C155: Stk | D155: aktiv | E155: 13.02
A156: 1978 | B156: ecoton PL 7 42,5 4/0,60 | C156: Stk | D156: aktiv | E156: 15.16
A157: 1978-12 | B157: ecoton PL 7 HAZ 42,5 | C157: Stk | D157: aktiv | E157: 8.069
A158: 1979 | B158: ecoton PL 7 49,0 4/0,60 | C158: Stk | D158: aktiv | E158: 18.4
A159: 1980 | B159: ecoton PL 8 36,5 6/0,65 | C159: Stk | D159: aktiv | E159: 13.3
A160: 1980-12 | B160: ecoton PL 8 HAZ 36,5 | C160: Stk | D160: aktiv | E160: 6.906
A161: 1980-16 | B161: ecoton PL 8 HAZ 36,5 | C161: Stk | D161: aktiv | E161: 9.375
A162: 1980-22 | B162: ecoton PL 8 HAZ 36,5 | C162: Stk | D162: aktiv | E162: 12.5
A163: 1980000000000000 | B163: ecoton PL 8 HAZ 36,5 | C163: Stk | D163: aktiv | E163: 6.906
A164: 1.98e+19 | B164: ecoton PL 8 HAZ 36,5 | C164: Stk | D164: aktiv | E164: 9.375
A165: 1.98e+25 | B165: ecoton PL 8 HAZ 36,5 | C165: Stk | D165: aktiv | E165: 12.5
A166: 1981 | B166: ecoton PL Eck 8 36,5 | C166: Stk | D166: aktiv | E166: 14.2
A167: 1984 | B167: ecoton PL Anf. 42,5 | C167: Stk | D167: aktiv | E167: 12.3
A168: 1985 | B168: ecoton PL Anf. 36,5 | C168: Stk | D168: aktiv | E168: 8.2
A169: 1988 | B169: ecoton PL 8 42,5 6/0,60 | C169: Stk | D169: aktiv | E169: 15.683
A170: 1988-12 | B170: ecoton PL 8 HAZ 42,5 | C170: Stk | D170: aktiv | E170: 8.069
A171: 1988-16 | B171: ecoton PL 8 HAZ 42,5 | C171: Stk | D171: aktiv | E171: 10.556
A172: 1988-22 | B172: ecoton PL 8 HAZ 42,5 | C172: Stk | D172: aktiv | E172: 14.583
A173: 1988-7 | B173: ecoton PL 8 HAZ 42,5 | C173: Stk | D173: aktiv | E173: 4.707
A174: 19888 | B174: ecoton PL 8 42,5 8/0,60 | C174: Stk | D174: aktiv | E174: 15.683
A175: 1988000000000000 | B175: ecoton PL 8 HAZ 42,5 | C175: Stk | D175: aktiv | E175: 8.069
A176: 1.988e+19 | B176: ecoton PL 8 HAZ 42,5 | C176: Stk | D176: aktiv | E176: 10.556
A177: 1.988e+25 | B177: ecoton PL 8 HAZ 42,5 | C177: Stk | D177: aktiv | E177: 14.583
A178: 1989 | B178: ecoton PL 8 49,0 6/0,60 | C178: Stk | D178: aktiv | E178: 18.082
A179: 1989-12 | B179: ecoton PL 8 HAZ 49,0 | C179: Stk | D179: aktiv | E179: 8.069
A180: 1990 | B180: ecoton ST 9 Baby HLZ 36,5 | C180: Stk | D180: aktiv | E180: 7.4
A181: 1992 | B181: VD-Walze 36/30 | C181: Stk | D181: aktiv | E181: 0
A182: 1992-1 | B182: Zahnräder Z 40 | C182: Stk | D182: aktiv | E182: 0
A183: 1992-2 | B183: Zahnräder Z 45 | C183: Stk | D183: aktiv | E183: 0
A184: 1998 | B184: ecoton ST 9 Baby HLZ 42,5 | C184: Stk | D184: aktiv | E184: 8.6
A185: 19996 | B185: Dummy allgemein | C185: Stk | D185: aktiv | E185: 0
A186: 2000814 | B186: Wandelement TH-Plan 17,5/0,8 | C186: qm | D186: aktiv | E186: 0
A187: 2000816 | B187: Wandelement TH-Plan 17,5/1,0 | C187: qm | D187: aktiv | E187: 0
A188: 2000817 | B188: Wandelement TH-Plan 17,5/1,2 | C188: qm | D188: aktiv | E188: 0
A189: 2000819 | B189: Wandelement TH-Plan 17,5/1,4 | C189: qm | D189: aktiv | E189: 0
A190: 2000820 | B190: Wandelement TH-Plan 24,0/0,8 Füll N+F | C190: qm | D190: aktiv | E190: 0
A191: 2000824 | B191: Wandelement TH-Plan 24,0 12/0,8 | C191: qm | D191: aktiv | E191: 0
A192: 2000826 | B192: Wandelement TH-Plan 24,0/1,0 | C192: qm | D192: aktiv | E192: 0
A193: 2000827 | B193: Wandelement TH-Plan 24,0/1,2 | C193: qm | D193: aktiv | E193: 0
A194: 2000829 | B194: Wandelement TH-Plan 24,0/1,4 | C194: qm | D194: aktiv | E194: 0
A195: 2000830 | B195: Wandelement ecoton Schalungsziegel 17,5 | C195: qm | D195: aktiv | E195: 0
A196: 2000831 | B196: Wandelement ecoton-Schalungsziegel 24,0 | C196: qm | D196: aktiv | E196: 0
A197: 2000832 | B197: Wandelement ecoton Schalungsziegel 30,0 | C197: qm | D197: aktiv | E197: 0
A198: 2000931 | B198: Ziegelsturz 11,5 cm | C198: lfdm | D198: aktiv | E198: 0
A199: 2000934 | B199: Ziegelsturz 17,5 cm | C199: lfdm | D199: aktiv | E199: 0
A200: 2001710 | B200: Wandelement evoton MZ 65 36,5 | C200: qm | D200: aktiv | E200: 0
... 1041 more rows
